Cogmind - Beta 17.1 @@@ ROGUE MODE // 2026.09.03 @ 20:09:59 // Winter2019/RPGLIKE Player: teag2 Result: Establishing 0b11! Performance ------------- Evolutions (9) 4500 Regions Visited (30) 6000 Robots Destroyed (2757) 13785 Value Destroyed (191632) 191632 Prototype IDs (219) 4380 Alien Tech Used (8) 1600 Bonus (237785) 237785 TOTAL SCORE: 459682 Bonus ------- Triggered High Security 4000 High Alert Combat Kills 150665 Follower Combat Kills 2452 Hunted by Unchained 1000 Delivered SUBCON Basin 2000 Registered with UFD 300 Met Optimus in HQ 500 Met Imprinter 300 Destroyed Z-Imprinter 1000 Met Zhirov 300 Met Warlord at Base 500 MAIN.C Attacked Warlord 500 Warlord Defense Kills 31514 Scanned by Researcher 500 Destroyed Superfortress 15000 Met Optimus at Protoforge 1000 Executed Drillbomb Mission 10000 Destroyed MAIN.C Guards 500 Destroyed MAIN.C Shell 5000 Destroyed MAIN.C 10000 Win 3000 Friendly Fire -2246 Cogmind --------- Core Integrity 1451/2000 Matter 300/300 Energy 1527/1550 System Corruption 0% Temperature Cool (12) Movement Walking (92) Location 0b11 Command Parts ------- > --- POWER (6) -------- Zero-point Reactor Vortex Chain Reactor Concept Zero-point Core Concept Zero-point Core Concept Zero-point Core > --- PROPULSION (7) --- Cargo Legs Improved Thunder Leg Experimental VSS Leg Experimental VSS Leg Experimental VSS Leg (fused) Experimental VSS Leg > --- UTILITY (8+1) ---- Experimental Power Amplifier Experimental Signal Interpreter (+) Concept Core Analysis Suite Improved Particle Charger Advanced Particle Charger (fused) Experimental Reaction Control System Experimental Phase Shifter Graphene Brace (fused) Improved System Restoration Module > --- WEAPON (4) ------- Hypervelocity Alpha Cannon Hypervelocity Alpha Cannon (fused) Hypervelocity Alpha Cannon Hypervelocity Alpha Cannon > --- INVENTORY (5) ---- Protomatter-77 Thermal Barrier Transdimensional Reconstructor Peak State ------------ > --- POWER ------------ Improved Quantum Reactor Vortex Chain Reactor Concept Zero-point Core Concept Zero-point Core Concept Zero-point Core > --- PROPULSION ------- Cargo Legs Improved Thunder Leg Experimental VSS Leg Experimental VSS Leg Experimental VSS Leg Experimental VSS Leg > --- UTILITY ---------- Experimental Signal Interpreter Experimental Core Analyzer Concept Core Analysis Suite Improved Particle Charger Experimental Reaction Control System Graphene Brace Thermal Barrier Concept Energy Mantle Tech Extrapolator > --- WEAPON ----------- Hypervelocity Alpha Cannon Hypervelocity Alpha Cannon Hypervelocity Alpha Cannon Hypervelocity Alpha Cannon > --- INVENTORY -------- Concept Chromion Battery Experimental Phase Shifter Experimental Focal Shield Crosscalibrator Transdimensional Reconstructor [Rating: 272] Favorites ----------- Power Concept Zero-point Core Engine Deuterium Engine Power Core Concept Zero-point Core Reactor Improved Quantum Reactor Propulsion Experimental VSS Leg Treads Experimental Biometal Heavy Treads Leg Experimental VSS Leg Flight Unit Flight Unit Utility Experimental Signal Interpreter Device Graphene Brace Storage Advanced Energy Well Processor Experimental Signal Interpreter Hackware Hacking Suite Protection Reflective Plating Weapon Hypervelocity Alpha Cannon Energy Gun Plasma Rifle Energy Cannon Hypervelocity Alpha Cannon Ballistic Gun Light Assault Rifle Ballistic Cannon Heavy Linear Accelerator Launcher Rocket Launcher Special Weapon Plasma Cutter Impact Weapon Power Maul Piercing Weapon Vortex Lance Special Melee Weapon Datajack Build | -11 -10 -10 -10 -9 -9 -6 -6 -6 -6 -6 -5 -5 -5 -5 -5 -5 -5 -4 -4 -4 -4 -4 -3 -3 -3 -2 -2 -2 -1 -1 ------- Run | Yrd Mat Min Sub Rec Scr Fac Low Low Zio Dee Pro Fac Was Fac Upp Upp Zhi Pro Fac Upp Upp War Pro Res Qua Res Tes Frg Acc Com Slots Evolved 20 | 2 . . . . 3 4 . 1 . . . 3 . 1 . . . . 1 . . 2 1 . 1 . . . 1 . Power 5 | . . . . . 1 . . . . . . 2 . 1 . . . . . . . . 1 . . . . . . . Propulsion 5 | 1 . . . . . 1 . . . . . . . . . . . . 1 . . 1 . . 1 . . . . . Utility 7 | . . . . . 2 1 . 1 . . . 1 . . . . . . . . . 1 . . . . . . 1 . Weapon 3 | 1 . . . . . 2 . . . . . . . . . . . . . . . . . . . . . . . . Parts Attached 200 | 3 4 2 6 3 3 21 . 3 2 14 . 15 2 7 . . 2 . 15 . . 21 2 4 5 3 6 20 3 34 Power 37 | . 1 . 1 . 1 5 . . . 1 . 3 2 4 . . . . 4 . . 5 1 2 . 1 . 4 1 1 Engine 6 | . 1 . . . 1 3 . . . . . 1 . . . . . . . . . . . . . . . . . . Core 9 | . . . 1 . . . . . . . . 1 . 4 . . . . . . . . . . . . . 3 . . Reactor 22 | . . . . . . 2 . . . 1 . 1 2 . . . . . 4 . . 5 1 2 . 1 . 1 1 1 Propulsion 26 | . 2 1 2 . . 2 . 1 . 1 . . . . . . . . 5 . . 4 . . 2 1 . 4 . 1 Treads 1 | . . . . . . . . . . . . . . . . . . . . . . . . . . . . . . 1 Leg 21 | . . . 1 . . 2 . 1 . 1 . . . . . . . . 5 . . 4 . . 2 1 . 4 . . Wheel . | . . . . . . . . . . . . . . . . . . . . . . . . . . . . . . . Hover . | . . . . . . . . . . . . . . . . . . . . . . . . . . . . . . . Flight 4 | . 2 1 1 . . . . . . . . . . . . . . . . . . . . . . . . . . . Utility 86 | 1 . 1 . 1 1 7 . 2 2 7 . 6 . 2 . . 2 . 6 . . 10 1 2 3 1 3 11 2 15 Device 55 | 1 . 1 . . . 4 . 1 2 3 . 4 . 1 . . . . 4 . . 5 1 2 3 1 3 6 2 11 Storage 3 | . . . . . . . . . . 1 . . . . . . 1 . . . . . . . . . . . . 1 Processor 11 | . . . . 1 1 3 . . . . . . . . . . . . . . . 2 . . . . . 3 . 1 Hackware 7 | . . . . . . . . . . . . 2 . 1 . . . . 2 . . 1 . . . . . . . 1 Protection 10 | . . . . . . . . 1 . 3 . . . . . . 1 . . . . 2 . . . . . 2 . 1 Artifact . | . . . . . . . . . . . . . . . . . . . . . . . . . . . . . . . Weapon 51 | 2 1 . 3 2 1 7 . . . 5 . 6 . 1 . . . . . . . 2 . . . . 3 1 . 17 Energy Gun 14 | 1 . . . . . 3 . . . 4 . . . . . . . . . . . . . . . . 1 . . 5 Energy Cannon 15 | . 1 . 2 1 . 1 . . . . . 4 . 1 . . . . . . . 1 . . . . . . . 4 Ballistic Gun 4 | 1 . . . . . 1 . . . 1 . . . . . . . . . . . . . . . . . . . 1 Ballistic Cannon 6 | . . . . . . . . . . . . 1 . . . . . . . . . . . . . . 1 . . 4 Launcher 5 | . . . 1 . . . . . . . . . . . . . . . . . . . . . . . 1 1 . 2 Special Weapon 3 | . . . . . 1 2 . . . . . . . . . . . . . . . . . . . . . . . . Impact Weapon 1 | . . . . . . . . . . . . . . . . . . . . . . . . . . . . . . 1 Slashing Weapon . | . . . . . . . . . . . . . . . . . . . . . . . . . . . . . . . Piercing Weapon 1 | . . . . . . . . . . . . . . . . . . . . . . 1 . . . . . . . . Special Melee Weapon 2 | . . . . 1 . . . . . . . 1 . . . . . . . . . . . . . . . . . . Unidentified Prototypes 76 | . . 1 . . . 2 1 . 2 12 . 2 . 2 . . 3 . 4 . . 14 . 2 8 1 5 7 . 10 Corrupted Parts 1 | . . . . . . . . . . . . . . . . . . . . . . . . . . . . . . 1 System Corruption 12 | . . . . . . . . . . . . . . . . . . . . . . . . . . . . . . 12 Parts Lost 3 | . . . . . . 1 . . . . . 1 . . . . . . . . . . . . . . . . . 1 Power . | . . . . . . . . . . . . . . . . . . . . . . . . . . . . . . . Propulsion . | . . . . . . . . . . . . . . . . . . . . . . . . . . . . . . . Utility 1 | . . . . . . . . . . . . . . . . . . . . . . . . . . . . . . 1 Weapon 2 | . . . . . . 1 . . . . . 1 . . . . . . . . . . . . . . . . . . Highest Loss Streak 1 | . . . . . . 1 . . . . . 1 . . . . . . . . . . . . . . . . . 1 To Critical Strikes . | . . . . . . . . . . . . . . . . . . . . . . . . . . . . . . . Average Backups 3 | . 1 . 1 . 2 3 4 3 3 4 4 4 3 2 2 2 2 3 3 4 4 4 5 4 4 4 4 3 1 2 Power . | . . . . . . . . . . . 1 . . . . . . . . . . . . . . . . . . . Propulsion . | . . . . . . 1 1 . . . . . . . . . . . . . . . . . . . . . . . Utility 1 | . . . . . . . 1 . . 2 2 1 2 1 1 1 1 1 1 2 2 3 2 1 1 1 1 2 . . Weapon . | . . . . . . . . . . . . . . . . . . . . . . . 2 1 . . . . . . Tool/Special . | . . . . . . . . . . . . . . . . . . . . . . . . . . . . . . . Unused Backups 15 | . 3 1 . 1 . . . . 1 . . 2 . . . . . . . . . 1 . 1 2 . . 1 . 2 Power 2 | . 2 . . . . . . . . . . . . . . . . . . . . . . . . . . . . . Propulsion 1 | . 1 . . . . . . . . . . . . . . . . . . . . . . . . . . . . . Utility 5 | . . 1 . . . . . . 1 . . 1 . . . . . . . . . . . 1 . . . 1 . . Weapon 3 | . . . . . . . . . . . . 1 . . . . . . . . . . . . 1 . . . . 1 Tool/Special 4 | . . . . 1 . . . . . . . . . . . . . . . . . 1 . . 1 . . . . 1 Average Slot Usage (%) 90 | . 97 100 74 65 79 90 90 89 94 93 94 93 95 94 95 95 94 95 94 95 95 91 91 92 91 92 91 91 91 90 Engine 1 | . 16 16 1 . 7 9 . . . . . . . . . . . . . . . . . . . . . . . . Core 6 | . . . 12 12 5 1 . . . . . 1 3 11 14 14 14 14 11 9 9 2 . . . . . 7 11 10 Reactor 9 | . . . . . . 3 12 11 11 11 11 12 16 10 9 9 9 9 11 13 13 15 16 20 19 19 19 10 6 6 Leg 18 | . 2 . 8 12 11 12 12 13 17 16 17 15 15 14 14 14 14 14 16 18 18 19 20 20 20 23 22 22 23 22 Device 23 | . 16 16 13 12 11 18 25 23 23 20 19 26 30 28 28 28 27 28 25 27 27 28 28 28 27 26 26 23 25 24 Processor 9 | . . . . 3 17 20 12 11 11 11 11 10 10 9 9 9 9 9 9 9 9 8 8 8 7 7 7 8 7 7 Energy Gun 4 | . 16 16 13 12 9 16 19 17 17 16 17 7 . . . . . . . . . . . . . . . . . . Energy Cannon 12 | . 5 16 11 9 1 4 6 5 4 5 5 12 20 19 19 19 19 19 18 18 18 16 16 16 15 15 14 14 15 13 Peak Build Rating 272 | 7 8 13 28 30 41 91 91 102 112 118 120 156 157 171 171 171 173 172 189 189 189 226 233 234 246 246 248 272 268 271 Average Rating 184 | 3 7 8 22 27 34 69 90 95 102 108 114 131 156 167 170 171 171 172 178 189 189 213 223 232 235 244 243 257 261 261 On Entrance 143 | 3 7 8 8 28 30 41 91 91 102 103 114 117 155 157 171 171 171 172 172 189 189 189 223 233 233 246 244 246 268 263 Avg Prop Armor Cover (%) 3 | . . . . . . . . . . . . . . . . . . . . . . . . . . 7 3 . 1 12 Naked Turns . | . . . . . . . . . . . . . . . . . . . . . . . . . . . . . . . Heaviest Build 175 | 6 11 11 16 12 20 48 48 55 55 71 71 102 106 114 114 114 114 114 129 129 129 169 171 171 175 175 162 159 149 158 Greatest Support 203 | 15 15 18 65 65 65 93 93 121 121 121 117 117 117 117 117 117 117 117 142 142 142 173 173 173 201 203 203 203 197 197 Greatest Overweight (x) 1 | . . . . . . . . . . . . 1 . . . . . . 1 . . 1 . . 1 1 . . . 1 Average Overweight (x) . | . . . . . . . . . . . . . . . . . . . . . . . . . . . . . . . Largest Inventory Capacity 5 | 1 1 1 3 3 3 4 4 4 4 5 5 5 5 5 5 5 5 5 5 5 5 5 5 5 5 5 5 5 5 5 Average Capacity 4 | . 1 1 2 3 3 3 4 4 4 4 5 5 5 5 5 5 5 5 5 5 5 5 5 5 5 5 5 5 5 5 Most Carried 5 | 1 1 1 3 3 3 4 4 4 4 5 5 5 5 5 5 5 5 5 5 5 5 5 5 5 5 5 5 5 5 5 Average Carried 4 | . 1 . 2 2 2 3 4 3 3 4 4 4 4 4 4 5 4 5 4 5 5 4 5 4 4 4 4 4 4 4 Final Capacity 5 | 1 1 1 3 3 3 4 4 4 4 5 5 5 5 5 5 5 5 5 5 5 5 5 5 5 5 5 5 5 5 5 Final Carried 5 | 1 1 1 3 2 3 4 4 3 4 5 4 4 5 5 5 5 5 5 5 5 5 5 5 5 5 4 4 2 4 3 Class Distribution -------------------- 45% | Generator-Tank 17% | Generator-Skirmisher 16% | Hacker-Skirmisher 6% | Generator-Gunner 6% | Commander-Mutant 3% | Mutant Dominant Class ---------------- Mutant | -10/Materials Commander-Mutant | -10/Mines Mutant | -10/Subcaves Commander-Mutant | -9/Recycling Commander-Mutant | -9/Scraptown Hacker-Skirmisher | -6/Factory Hacker-Skirmisher | -6/Lower Caves Hacker-Skirmisher | -6/Lower Caves Hacker-Skirmisher | -6/Zion Hacker-Skirmisher | -6/Deep Caves Hacker-Skirmisher | -5/Proximity Caves Hacker-Skirmisher | -5/Factory Generator-Tank | -5/Waste Generator-Tank | -5/Factory Generator-Tank | -5/Upper Caves Generator-Skirmisher | -5/Upper Caves Generator-Skirmisher | -5/Zhirov Generator-Skirmisher | -4/Proximity Caves Generator-Skirmisher | -4/Factory Generator-Skirmisher | -4/Upper Caves Generator-Skirmisher | -4/Upper Caves Generator-Tank | -4/Warlord Generator-Tank | -3/Proximity Caves Generator-Tank | -3/Research Generator-Skirmisher | -3/Quarantine Generator-Tank | -2/Research Generator-Tank | -2/Testing Generator-Tank | -2/Protoforge Generator-Tank | -1/Access Generator-Tank | -1/Command Resources | -11 -10 -10 -10 -9 -9 -6 -6 -6 -6 -6 -5 -5 -5 -5 -5 -5 -5 -4 -4 -4 -4 -4 -3 -3 -3 -2 -2 -2 -1 -1 ----------- Run | Yrd Mat Min Sub Rec Scr Fac Low Low Zio Dee Pro Fac Was Fac Upp Upp Zhi Pro Fac Upp Upp War Pro Res Qua Res Tes Frg Acc Com Matter Collected 6156 | 220 62 10 171 35 20 465 20 50 20 280 50 316 10 120 . . . 60 195 . 6 340 34 142 269 66 297 775 230 1893 Remotely . | . . . . . . . . . . . . . . . . . . . . . . . . . . . . . . . Salvage Created 175490 | 145 512 21 201 219 . 3174 143 542 . 658 492 5411 621 4581 1019 97 . 716 7917 837 143 14183 4119 9778 8806 10491 12148 30081 21915 36520 Parts 7894 | 6 30 4 26 24 . 111 9 17 . 23 19 253 22 243 64 5 . 26 418 38 4 516 207 470 433 592 335 1324 1185 1490 Haulers Intercepted 28 | . 1 . . . . 4 . . . . . 6 . 4 . . . . 4 . . . . 2 . 2 . 1 4 . Recyclers Shooed 11 | . . . . 1 . 7 . . . . . 2 . . . . . . . . . . . . . . . . . 1 Parts Field Recycled . | . . . . . . . . . . . . . . . . . . . . . . . . . . . . . . . Retrieved Matter . | . . . . . . . . . . . . . . . . . . . . . . . . . . . . . . . Parts Self-Destructed 411 | . . . 19 . . . 12 17 7 . 16 . . . 64 5 . 28 . 38 3 . 202 . . . . . . . Prevented 1 | . . . . . . . . . . . . . . . . . . . . . 1 . . . . . . . . . Parts Restored 3 | . . . . . . . . . . . . . . . . . . . . . . . . . . . . 3 . . Faulty 3 | . . . . . . . . . . . . . . . . . . . . . . . . . . . . 3 . . Kills | -11 -10 -10 -10 -9 -9 -6 -6 -6 -6 -6 -5 -5 -5 -5 -5 -5 -5 -4 -4 -4 -4 -4 -3 -3 -3 -2 -2 -2 -1 -1 ------- Run | Yrd Mat Min Sub Rec Scr Fac Low Low Zio Dee Pro Fac Was Fac Upp Upp Zhi Pro Fac Upp Upp War Pro Res Qua Res Tes Frg Acc Com Combat Hostiles Destroyed 2610 | . 11 3 11 13 . 47 6 11 . 14 7 74 6 67 25 1 . 12 114 20 2 224 64 136 134 147 157 460 315 529 Melee 1 | . . . . . . . . . . . . 1 . . . . . . . . . . . . . . . . . . Guns 96 | . 8 1 1 4 . 33 5 7 . 11 4 22 . . . . . . . . . . . . . . . . . . Cannons 2498 | . 3 2 6 8 . 11 1 2 . 3 3 49 6 67 25 1 . 12 111 20 2 224 64 136 134 147 157 460 315 529 AOE 8 | . . . 4 . . . . . . . . 1 . . . . . . 3 . . . . . . . . . . . Classes Destroyed 40 | 2 4 . 3 3 . 5 . . . 2 . 3 1 1 1 . . 2 . . . 4 . 1 2 . 1 5 . . Worker 30 | . . . . . . 4 . . . . . 5 . 2 . . . . 7 . . . . 1 2 1 1 3 4 . Builder 37 | . . . . . . 1 . . . . . 8 . . . . . . 13 . . . 1 . 1 2 2 1 8 . Tunneler 6 | 2 . . . . . . . . . . . 3 . . . . . . . . . . . . . 1 . . . . Hauler 28 | . 1 . . . . 4 . . . . . 6 . 4 . . . . 4 . . . . 2 . 2 . 1 4 . Recycler 19 | 1 . . . . . 3 . . . . . 1 . 1 . . . . 3 . . . 1 . . 2 2 . 1 4 Carrier 7 | . . . . . . . . . . . . . . . . . . 1 . . . . . . . . 2 1 3 . Minesweeper 3 | . . . . . . . . . . . . . . . 1 1 . . . . 1 . . . . . . . . . Mechanic 71 | . . . . . . 1 . . . . . 1 . 2 . . . . 2 . . 7 . 10 4 6 9 9 12 8 Operator 15 | . . . . . . 1 . . . . . . . 3 . . . . 2 . . . . 1 1 . 1 2 2 2 Drone 5 | . . . . . . . . . . . . . . . . . . . . . . . . . . . . 5 . . Watcher 57 | . 2 . . . . 1 . . . . . 7 . 2 . . . . 8 . . . 2 3 3 5 . 2 12 10 Swarmer 138 | . 5 3 3 . . 5 4 1 . . . . . . 6 . . 9 9 3 . 16 13 3 5 . . 18 . 35 Cutter 23 | . . . . . . . . . . . . . . . . . . . . . . . . . . . . . 11 12 Saboteur 99 | . . . . . . . . . . . . 2 . 2 . . . . 4 . . 7 5 8 5 8 12 10 16 20 Grunt 841 | . 6 . 2 4 . 27 1 6 . . 3 44 . 36 14 1 . . 52 11 1 101 20 58 66 48 63 58 74 145 Brawler 146 | . . . . . . . . . . . . 3 . . 1 . . . 10 2 . 18 4 8 13 10 15 16 12 34 Duelist 149 | . . . . 1 . . 1 2 . . . 3 . 3 . . . . 7 2 . 10 3 13 14 5 11 16 24 34 Protector 106 | . . . . . . . . . . . . 1 . 5 . . . . 2 . . 11 2 4 9 8 11 4 20 29 Researcher 12 | . . . . . . . . . . . . . . . . . . . . . . . . . 4 . 2 6 . . Sentry 115 | . . . 1 5 . 5 . 1 . . . 7 . 10 2 . . . 14 2 1 . 8 12 1 15 . 11 16 4 Demolisher 16 | . . . . . . . . . . . . . . . . . . . . . . 4 . . . . . . . 12 Specialist 85 | . . . . . . . . . . . . . . . . . . . . . . 6 . 1 . . . 51 . 27 Hunter 221 | . . . . 1 . 5 . . . . 4 3 . 6 2 . . 2 10 . . 8 8 9 6 16 11 45 21 64 Programmer 238 | . . . . 2 . 3 . 1 . . . 10 . 4 . . . . 5 . . 11 1 11 12 24 17 28 44 65 Heavy 10 | . . . . . . 2 . . . . . 1 . 1 . . . . 1 . . . . 1 . 1 . . 2 1 Q-Series 1 | . . . . . . . . . . . . . . . . . . . . . . . . . 1 . . . . . Behemoth 8 | . . . . . . . . . . . . . . . . . . 1 . . . . 1 . . . . . 3 3 Compactor 6 | . . . . . . . . . . . . . 6 . . . . . . . . . . . . . . . . . M Guard 2 | . . . . . . . . . . . . . . . . . . . . . . . . . . . . . . 2 Hotshot 22 | . . . . . . . . . . . . . . . . . . . . . . . . . . . . 22 . . Decapitator 35 | . . . . . . . . . . . . . . . . . . . . . . . . . . . . 35 . . Immortal 23 | . . . . . . . . . . . . . . . . . . . . . . . . . . . . 23 . . Combat Programmer 2 | . . . . . . . . . . . . . . . . . . . . . . . . . . . . . . 2 Investigator 10 | . . . . . . . . . . . . . . . . . . . . . . . . 1 1 2 3 . 2 1 Striker 131 | . . . . . . . . . . . . . . . . . . . . . . 18 . 7 1 6 10 43 38 8 Executioner 145 | . . . . . . . . . . . . . . . . . . . . . . 14 . 3 . 6 5 59 34 24 Alpha 7 8 | . . . . . . . . . . . . . . . . . . . . . . . . . 1 . 1 4 . 2 Fortress 1 | . . . . . . . . . . . . . . . . . . . . . . . . . . . 1 . . . V-Series 11 | . . . . . . . . . . . . . . . . . . . . . . . . . . . . 11 . . Artisan 1 | . . . 1 . . . . . . . . . . . . . . . . . . . . . . . . . . . Subdweller 5 | . . . 5 . . . . . . . . . . . . . . . . . . . . . . . . . . . Elite 2 | . . . . . . . . . . . . . . . . . . . . . . . . . . . . 2 . . Scraphulk 1 | . . . . . . . . . . . . . . . . . . . . . . . . . . . . 1 . . Z-Light 8 | . . . . . . . . . . 8 . . . . . . . . . . . . . . . . . . . . Assembled 5 | . . . . . . . . . . 5 . . . . . . . . . . . . . . . . . . . . Surgeon 1 | . . . . . . . . . . . . . . 1 . . . . . . . . . . . . . . . . Wasp 1 | . . . . . . . . . . . . . . 1 . . . . . . . . . . . . . . . . Thug 2 | . . . . . . . . . . . . . . 2 . . . . . . . . . . . . . . . . Savage 3 | . . . . . . . . . . . . . . 1 . . . . . . . . . . . . . . . 2 Bouncer 2 | . . . . . . . . . . . . . . . . . . . . . . 2 . . . . . . . . Martyr 2 | . . . . . . . . . . . . . . 2 . . . . . . . . . . . . . . . . Wizard 2 | . . . . . . . . . . . . . . . . . . . . . . . . . . . . . . 2 Mutant 1 | . . . . . . . . . . . . . . . . . . . . . . 1 . . . . . . . . Best Kill Streak 73 | 2 3 4 3 3 . 9 3 6 . 3 2 10 2 30 13 2 . 10 15 9 3 39 11 47 26 39 52 64 61 73 Combat Bots Only 72 | . 3 3 3 3 . 7 3 6 . 3 2 8 2 28 13 1 . 9 12 9 2 38 11 42 25 35 49 64 56 72 Max Kills in Single Turn 12 | 1 2 1 2 2 . 2 1 1 . 1 1 4 2 4 4 1 . 3 5 4 2 4 4 3 9 4 10 5 5 12 Gunslinging . | . . . . . . . . . . . . . . . . . . . . . . . . . . . . . . . Exploded 2 | . . . 2 . . . . . . . . 1 . . . . . . 2 . . . . . . . . . . . Melee 1 | . . . . . . . . . . . . 1 . . . . . . . . . . . . . . . . . . Uniques/NPCs Destroyed 4 | . . . . . . . . . . 1 . . . . . . . . . . . . . . . . . 1 . 2 Z-Imprinter (-6/Deep Caves) Superfortress (-2/Protoforge) MAIN.C Shell (-1/Command) MAIN.C (-1/Command) Combat | -11 -10 -10 -10 -9 -9 -6 -6 -6 -6 -6 -5 -5 -5 -5 -5 -5 -5 -4 -4 -4 -4 -4 -3 -3 -3 -2 -2 -2 -1 -1 -------- Run | Yrd Mat Min Sub Rec Scr Fac Low Low Zio Dee Pro Fac Was Fac Upp Upp Zhi Pro Fac Upp Upp War Pro Res Qua Res Tes Frg Acc Com Hostile Shots Fired 6651 | . 63 9 43 34 . 357 15 20 6 32 39 291 . 76 11 2 . 4 145 2 . 161 43 389 502 620 474 866 1185 1262 Missed 4028 | . 22 5 20 13 . 121 5 6 2 10 14 133 . 35 6 2 . 2 73 1 . 114 24 245 346 406 307 531 749 836 Hits 2623 | . 41 4 23 21 . 236 10 14 4 22 25 158 . 41 5 . . 2 72 1 . 47 19 144 156 214 167 335 436 426 Melee 111 | . . . . 5 . . . . . . . 9 . 1 . . . . . . . 3 . 6 5 1 5 22 25 29 Projectile 2512 | . 41 4 23 16 . 236 10 14 4 22 25 149 . 40 5 . . 2 72 1 . 44 19 138 151 213 162 313 411 397 AOE 47 | . . . . . . . . . . . . 1 . . . . . . . . . 1 . 4 . 2 2 2 5 30 Critical Strikes 181 | . 1 . 1 1 . 5 1 1 . . . 10 . 1 . . . . 2 . . 4 . 12 16 15 14 26 34 37 Actively Blocked 174 | . . . . . . 3 1 1 . . . 8 . 1 . . . . 2 . . 4 . 12 16 15 14 26 34 37 Part Disruptions 8 | . . . . . . . . . . . . . . . . . . . . . . . . . 1 2 1 1 3 . Damage Taken 35061 | . 372 32 629 337 . 2871 131 187 35 370 371 2454 . 641 50 . . 27 863 11 . 631 226 1443 2200 2234 3084 4707 3985 7170 Core 27557 | . 307 25 527 266 . 2307 104 150 21 288 206 1902 . 522 41 . . 21 683 8 . 487 173 1112 1711 1722 2473 3632 3179 5690 Absorbed by Shields 16858 | . . . . 45 . 425 . 42 13 118 . 574 . 232 20 . . 10 317 4 . 230 85 774 296 1731 326 1939 3448 6229 Redirected to Core 23959 | . 200 25 347 239 . 1869 91 127 21 250 184 1586 . 402 31 . . 21 601 8 . 487 173 1051 1594 1562 2151 3231 2628 5080 Redirected to Shielding 149 | . . . . . . . . . . . 44 105 . . . . . . . . . . . . . . . . . . Ignored by Resistances 19266 | . 41 4 38 12 . 505 37 53 7 127 57 622 . 224 19 . . 5 372 7 . 305 131 745 848 1175 968 3958 4732 4274 Regen/Repaired (Parts) 243 | . . . . . 60 . . . . . . . . . . . . . . . . . . . . . . 183 . . Core Remaining (%) 95 | 100 . . . . 100 . . . . . 99 . . . . . . 97 . . . . 100 . 94 . . 100 . 72 Volleys Fired 3294 | 17 36 4 42 31 . 164 15 28 3 26 20 155 7 82 20 4 . 16 144 14 2 186 71 162 138 159 136 758 334 520 Largest 4 | 1 2 2 2 2 . 4 4 4 4 4 4 4 3 4 4 4 . 4 4 4 4 4 4 4 4 4 4 4 4 4 Hottest 360 | 50 110 110 130 110 . 261 261 321 261 321 283 283 270 360 360 360 . 360 360 360 360 360 360 360 360 360 360 360 360 360 Shots Fired 10818 | 17 72 8 61 62 . 455 57 88 6 92 80 427 21 215 69 14 . 46 460 55 8 667 261 523 513 559 498 2828 1132 1524 Gun 932 | 17 58 4 19 31 . 347 42 60 3 69 60 203 . . . . . . . . . . . . . . . . . 19 Cannon 9875 | . 14 4 37 31 . 103 15 28 3 23 20 224 21 215 69 14 . 46 460 55 8 667 261 523 513 559 498 2828 1132 1504 Launcher 6 | . . . 5 . . . . . . . . . . . . . . . . . . . . . . . . . . 1 Special 5 | . . . . . . 5 . . . . . . . . . . . . . . . . . . . . . . . . Kinetic 115 | . 22 . . . . 7 . . . . . 1 . . . . . . . . . . . . . . . . . 85 Thermal 1166 | 17 50 8 56 62 . 444 57 88 6 89 60 224 . . . . . . . . . . . . . . . . . 5 Explosive 6 | . . . 5 . . . . . . . . . . . . . . . . . . . . . . . . . . 1 Electromagnetic 24 | . . . . . . . . . . . . . . . . . . . . . . . . . . . . . . 24 Phasic 9503 | . . . . . . . . . . 3 20 202 21 215 69 14 . 46 460 55 8 667 261 523 513 559 498 2828 1132 1409 Robot Hit Streak 79 | 5 7 2 14 18 . 22 3 19 2 13 12 31 5 15 7 3 . 16 16 11 3 30 18 22 22 31 46 79 54 39 Robot Miss Streak 8 | 1 4 1 3 1 . 4 5 1 2 2 3 4 2 4 3 1 . 2 4 2 1 4 2 5 5 3 2 5 5 8 Penetration Max 11 | . . . . . . . . . . . . 3 1 3 3 . . 2 9 3 1 4 4 2 9 4 11 5 7 11 Secondary Targets 3 | . 1 . . . . 2 . . . . . . . . . . . . . . . . . . . . . . . . Max Gunslinging Chain 1 | . 1 . . . . 1 . . . . . . . . . . . . . . . . . . . . . . . . Shots Hit Robots 5785 | 11 47 4 34 52 4 334 21 53 2 52 46 274 11 108 27 3 . 24 207 28 3 307 106 245 234 279 278 1586 578 827 Core Hits 3467 | 5 21 3 20 19 . 153 8 20 2 21 17 138 1 84 20 1 . 9 144 12 . 181 41 141 151 137 201 877 402 638 Critical Kills . | . . . . . . . . . . . . . . . . . . . . . . . . . . . . . . . Critical Parts Destroyed . | . . . . . . . . . . . . . . . . . . . . . . . . . . . . . . . Critical Strikes 3723 | 2 2 1 1 6 . 18 1 . . 6 . 54 12 120 29 3 . 9 190 26 5 370 92 211 214 248 255 634 489 725 Burn 37 | 2 2 1 1 6 . 18 1 . . 6 . . . . . . . . . . . . . . . . . . . . Intensify 3 | . . . . . . . . . . . . 3 . . . . . . . . . . . . . . . . . . Phase 3683 | . . . . . . . . . . . . 51 12 120 29 3 . 9 190 26 5 370 92 211 214 248 255 634 489 725 Melee Attacks 9 | . . . . 2 4 2 . . . . . 1 . . . . . . . . . . . . . . . . . . Impact . | . . . . . . . . . . . . . . . . . . . . . . . . . . . . . . . Slashing . | . . . . . . . . . . . . . . . . . . . . . . . . . . . . . . . Piercing . | . . . . . . . . . . . . . . . . . . . . . . . . . . . . . . . Sneak Attacks 9 | . . . . 2 4 2 . . . . . 1 . . . . . . . . . . . . . . . . . . Combat Hostiles . | . . . . . . . . . . . . . . . . . . . . . . . . . . . . . . . Follow-up Attacks . | . . . . . . . . . . . . . . . . . . . . . . . . . . . . . . . Damage Inflicted 412147 | 156 574 66 810 870 . 7982 587 1532 60 1607 1684 12842 520 7979 1840 120 . 1252 15032 1788 200 25888 7748 18079 20716 19737 27540 110580 45101 79257 Guns 16702 | 147 399 13 187 367 . 5930 425 1105 27 1182 1296 5624 . . . . . . . . . . . . . . . . . . Cannons 386441 | . 175 53 405 494 . 1853 162 427 33 425 388 6178 520 7464 1840 120 . 1252 14024 1788 200 25888 7560 18040 20656 19704 27540 110580 45064 73608 Explosions 3210 | . . . 201 . . 150 . . . . . 928 . 515 . . . . 876 . . . 188 . 60 33 . . . 259 Melee . | . . . . . . . . . . . . . . . . . . . . . . . . . . . . . . . Ramming 5781 | 9 . . 17 9 . 36 . . . . . 112 . . . . . . 132 . . . . 39 . . . . 37 5390 Kinetic 194 | . 106 . . . . 88 . . . . . . . . . . . . . . . . . . . . . . . . Thermal 22659 | 147 468 66 592 861 . 7858 587 1532 60 1607 1189 6765 . 502 . . . . 237 . . . 188 . . . . . . . Explosive 1106 | . . . 201 . . . . . . . . 95 . . . . . . 491 . . . . . 60 . . . . 259 Electromagnetic 288 | . . . . . . . . . . . . 94 . 13 . . . . 148 . . . . . . 33 . . . . Impact 30 | . . . . . . . . . . . . . . . . . . . . . . . . . . . . . . 30 Slashing . | . . . . . . . . . . . . . . . . . . . . . . . . . . . . . . . Piercing . | . . . . . . . . . . . . . . . . . . . . . . . . . . . . . . . Phasic 382089 | . . . . . . . . . . . 495 5776 520 7464 1840 120 . 1252 14024 1788 200 25888 7560 18040 20656 19704 27540 110580 45064 73578 Highest Corruption 39 | . . . . . . 5 . . . . . 3 . . . . . . . 1 1 1 1 3 6 11 12 14 17 39 Average Corruption 8 | . . . . . . 4 . . . . . 1 . . . . . . . 1 1 1 1 2 4 6 7 7 7 23 Corruption Purged 114 | . . . . . . 5 . . . . . 3 . . . . . . . . . . . . . . 20 29 6 51 Corruption Blocked . | . . . . . . . . . . . . . . . . . . . . . . . . . . . . . . . Effects 704 | . . . . . . 21 . . . . . 25 . . . . . . . 4 2 1 5 14 50 24 62 216 86 194 Message Errors 134 | . . . . . . 6 . . . . . 5 . . . . . . . 2 . . . 3 14 6 11 36 16 35 Matter Fused 150 | . . . . . . 3 . . . . . 5 . . . . . . . . 1 . 2 4 8 3 14 44 22 44 Heat Flow Errors 85 | . . . . . . 4 . . . . . 1 . . . . . . . . 1 . 2 . 6 2 9 27 11 22 Energy Discharges 67 | . . . . . . 3 . . . . . 3 . . . . . . . . . 1 . 1 5 3 8 21 11 11 Parts Rejected 6 | . . . . . . 1 . . . . . . . . . . . . . . . . . . . . 1 1 . 3 Parts Fused 7 | . . . . . . . . . . . . 1 . . . . . . . . . . . . . . . 3 2 1 Data Loss (minor) 70 | . . . . . . 1 . . . . . 6 . . . . . . . 1 . . 1 2 5 4 3 21 5 21 Data Loss (major) 22 | . . . . . . . . . . . . 2 . . . . . . . . . . . 1 3 1 4 5 1 5 Misfires 24 | . . . . . . 1 . . . . . . . . . . . . . 1 . . . 2 2 2 2 . 4 10 Alerts 12 | . . . . . . . . . . . . . . . . . . . . . . . . . 3 . 1 5 1 2 Misdirections 7 | . . . . . . . . . . . . . . . . . . . . . . . . . . . 1 . 1 5 Weapon Failures 120 | . . . . . . 2 . . . . . 2 . . . . . . . . . . . 1 4 3 8 53 12 35 Overload Shots 30 | . . . . . . 3 . 5 . 11 3 8 . . . . . . . . . . . . . . . . . . Effects 2 | . . . . . . . . . . 1 1 . . . . . . . . . . . . . . . . . . . Energy Bleed 1 | . . . . . . . . . . . 1 . . . . . . . . . . . . . . . . . . . Heat Surge 1 | . . . . . . . . . . 1 . . . . . . . . . . . . . . . . . . . . Overflow Damage 7448 | . . . 2 . . 5 18 33 . . . 391 . 91 43 . . . 529 101 40 427 325 312 624 572 616 1112 709 1498 Projectiles 6418 | . . . 2 . . 5 18 33 . . . 102 . 85 43 . . . 345 101 40 427 237 312 594 572 616 1112 687 1087 Explosions 574 | . . . . . . . . . . . . 289 . 6 . . . . 161 . . . 88 . 30 . . . . . Melee 456 | . . . . . . . . . . . . . . . . . . . 23 . . . . . . . . . 22 411 Knockbacks 77 | . . . . . . 1 . . . . . 1 . . . . . . 1 . . . . . . . . . 1 73 Impact 76 | . . . . . . 1 . . . . . 1 . . . . . . 1 . . . . . . . . . 1 72 Kinetic . | . . . . . . . . . . . . . . . . . . . . . . . . . . . . . . . Secondary 1 | . . . . . . . . . . . . . . . . . . . . . . . . . . . . . . 1 Self-Inflicted Damage 641 | . . . 11 . . 108 . . . . . 239 . 78 . . . . 124 . . . . . . . . . 17 64 Shots 10 | . . . 2 . . 1 . . . . . 3 . 1 . . . . 2 . . . . . . . . . 1 . Rammed . | . . . . . . . . . . . . . . . . . . . . . . . . . . . . . . . Targets Rammed 207 | 5 . . 3 3 . 9 . . . . . 10 . . . . . . 4 . . . . 1 . . . . 1 171 Kicked 207 | 5 . . 3 3 . 9 . . . . . 10 . . . . . . 4 . . . . 1 . . . . 1 171 Crushed . | . . . . . . . . . . . . . . . . . . . . . . . . . . . . . . . Highest Temperature 403 | 70 30 . 16 12 . 188 66 198 33 403 60 282 252 321 228 97 . 190 212 60 60 84 173 63 228 92 262 245 276 304 Average Temperature 45 | 25 12 . 7 8 . 25 25 49 22 96 36 71 99 95 76 49 . 74 65 26 34 42 49 17 27 22 36 99 39 40 Received Heat Transfer 4740 | . 162 . 96 35 . 904 18 66 . 126 18 763 . 150 18 . . . 198 . . 94 29 212 319 277 299 371 283 302 Effects 12 | . . . . . . . . . . . . 1 2 4 1 . . . . . . . . . . . . . 3 1 Energy Bleed 2 | . . . . . . . . . . . . 1 . . 1 . . . . . . . . . . . . . . . Interference 8 | . . . . . . . . . . . . . 2 3 . . . . . . . . . . . . . . 3 . Short Circuit 1 | . . . . . . . . . . . . . . 1 . . . . . . . . . . . . . . . . Damage (minor) 1 | . . . . . . . . . . . . . . . . . . . . . . . . . . . . . . 1 Siege Activations . | . . . . . . . . . . . . . . . . . . . . . . . . . . . . . . . Martial Activations . | . . . . . . . . . . . . . . . . . . . . . . . . . . . . . . . Shielding Activations . | . . . . . . . . . . . . . . . . . . . . . . . . . . . . . . . Robots Disrupted . | . . . . . . . . . . . . . . . . . . . . . . . . . . . . . . . Combat Hostiles . | . . . . . . . . . . . . . . . . . . . . . . . . . . . . . . . Robots Corrupted 1 | . . . . . . . . . . . . 1 . . . . . . . . . . . . . . . . . . Combat Hostiles . | . . . . . . . . . . . . . . . . . . . . . . . . . . . . . . . Parts Fried 8 | . . . . . . . . . . . . 2 . . . . . . . . . 1 . 1 . 1 . . . 3 Impact Corruptions 36 | . . . . . . . . . . . . 1 . . . . . . 3 . . . . . . . . . 1 31 Robots Melted 7 | . . . . 1 . 3 . 2 . . . 1 . . . . . . . . . . . . . . . . . . Combat Hostiles 7 | . . . . 1 . 3 . 2 . . . 1 . . . . . . . . . . . . . . . . . . Parts Melted 104 | . 8 . 3 6 . 45 . 4 . 13 3 10 . 2 . . . . . . . 1 2 . . . . 6 . 1 Heat Transferred 36778 | 592 1406 222 1258 2428 . 16419 1033 2390 74 2787 1186 6398 . 325 . . . . 100 . . . 160 . . . . . . . Parts Sabotaged 9 | . . . . . . . . . . . . 3 . . . . . . . . . 2 . . . . . . 3 1 Parts Stolen . | . . . . . . . . . . . . . . . . . . . . . . . . . . . . . . . Parts Stripped . | . . . . . . . . . . . . . . . . . . . . . . . . . . . . . . . Power Chain Reactions . | . . . . . . . . . . . . . . . . . . . . . . . . . . . . . . . Alert | -11 -10 -10 -10 -9 -9 -6 -6 -6 -6 -6 -5 -5 -5 -5 -5 -5 -5 -4 -4 -4 -4 -4 -3 -3 -3 -2 -2 -2 -1 -1 ------- Run | Yrd Mat Min Sub Rec Scr Fac Low Low Zio Dee Pro Fac Was Fac Upp Upp Zhi Pro Fac Upp Upp War Pro Res Qua Res Tes Frg Acc Com Maximum Alert Level 5 | . . . . 1 . 3 . . . . . 5 3 5 . . . . 5 . . . . 5 5 5 5 5 5 5 Low Security (%) 9 | 100 100 100 . 42 . 27 . . . . . 23 . . . . . . 27 . . . . . . . . . . . Level 1 8 | . . . . 57 . 40 . . . . . 17 . . . . . . 5 . . . . . . . . . . . Level 2 3 | . . . . . . 10 . . . . . 19 14 7 . . . . 2 . . . . . . . . . . . Level 3 5 | . . . . . . 21 . . . . . 16 85 . . . . . 12 . . . . 4 . . . . . . Level 4 1 | . . . . . . . . . . . . 10 . 15 . . . . 6 . . . . 5 . . . . . . Level 5 34 | . . . . . . . . . . . . 12 . 9 . . . . 25 . . . . 9 57 7 17 100 5 40 High Security 37 | . . . . . . . . . . . . . . 66 . . . . 20 . . . . 80 42 92 82 . 94 59 Max Security . | . . . . . . . . . . . . . . . . . . . . . . . . . . . . . . . Sterilizations 5 | . . . . . . . . . . . . . . . . . . . . . . . . 1 1 1 1 . 1 . Peak Influence 29106 | 10 147 123 . 358 . 810 . . . . . 2457 881 6408 . . . . 5050 . . . . 5501 7412 9460 9909 17432 21835 29106 Initial 13974 | . . 53 . 7 . . . . . . . . 859 464 . . . . . . . . . 749 3093 4169 5321 5573 10459 13974 Average 9066 | 1 52 70 . 184 . 361 . . . . . 760 786 3350 . . . . 1776 . . . . 3575 5224 7069 7944 10302 16516 23495 Influence Increases 86427 | 15 336 70 156 736 . 1982 140 240 . . 185 3650 82 6244 535 25 . 300 5548 444 54 4697 1624 5052 4783 5341 4768 12629 11446 15345 Destroy 0b10 Robot/C 51120 | . 220 60 120 340 . 1120 120 220 . . 140 1460 . 1920 500 20 . 260 2240 400 40 4300 1280 2780 2600 2820 3060 9160 6000 9940 Destroy 0b10 Robot/NC 2040 | 15 15 . . 50 . 90 . . . . 5 160 . 130 5 5 . . 210 5 5 90 50 110 100 135 130 140 315 275 Destroy Leader 5424 | . 46 10 20 . . 292 20 20 . . 40 286 . 286 30 . . 40 394 20 . . 70 422 326 454 400 764 982 502 Allied During Kill 3018 | . . . 1 190 . 248 . . . . . . . 1814 . . . . . 19 9 127 209 401 . . . . . . Trap Triggered on 0b10 10 | . . . . . . . . . . . . . . . . . . . 10 . . . . . . . . . . . Successful Hack 303 | . 9 . . 29 . 40 . . . . . 51 . . . . . . 54 . . . . 26 45 . 2 . . 47 Select Force Hacks 150 | . 30 . . 120 . . . . . . . . . . . . . . . . . . . . . . . . . . Disable Machine 4170 | . . . . . . 90 . . . . . 540 . 750 . . . . 705 . . . . 240 450 180 150 645 135 285 Anti-Garrison Action 1100 | . . . . . . . . . . . . . . 300 . . . . 150 . . . . 150 150 150 . . 150 50 Destroy Structure 16887 | . 1 . . 7 . 57 . . . . . 1048 82 1044 . . . . 1650 . . . . 908 1082 1587 1026 1230 3729 3436 Partial Spotted 15 | . . . . . . . . . . . . . . . . . . . . . . . . . 15 . . . . . Lose Combat Pursuer 2190 | . 15 . 15 . . 45 . . . . . 105 . . . . . . 135 . . 180 15 15 15 15 . 690 135 810 Influence Decreases 57298 | 15 198 195 154 532 219 1191 540 410 221 . 185 1194 1875 499 2602 1160 3206 298 500 2107 784 3037 4831 661 2872 3293 4319 5106 7043 8051 Entered New Map 47921 | . . 85 8 8 219 . 294 76 221 . . . 1597 199 2372 826 3206 . 2 1869 644 2657 4317 361 2408 3243 4139 4336 6973 7861 Time Decay 7988 | 15 198 110 146 474 . 723 246 334 . . 185 733 278 150 230 334 . 298 498 238 140 340 474 130 464 50 180 770 70 180 Lost Part 30 | . . . . . . 10 . . . . . 10 . . . . . . . . . . . . . . . . . 10 Lost Ally 609 | . . . . 50 . 308 . . . . . 1 . 150 . . . . . . . 40 40 20 . . . . . . Purge Threat 750 | . . . . . . 150 . . . . . 450 . . . . . . . . . . . 150 . . . . . . Squads Dispatched 374 | . 3 1 . . . 19 . . . . . 21 . 29 . . . . 31 . . . 5 39 31 37 38 19 63 38 Investigation 31 | . 2 1 . . . 5 . . . . . 7 . 1 . . . . 3 . . . 4 1 2 . 1 4 . . Extermination 22 | . . . . . . 6 . . . . . 6 . . . . . . 3 . . . . . 4 . 1 1 . 1 Reinforcement 20 | . 1 . . . . 7 . . . . . 2 . 1 . . . . 1 . . . . . 1 1 1 4 . 1 Assault 292 | . . . . . . 1 . . . . . 6 . 27 . . . . 24 . . . 1 34 23 35 35 10 60 36 Garrison 9 | . . . . . . . . . . . . . . . . . . . . . . . . 4 1 1 . . 3 . Intercept . | . . . . . . . . . . . . . . . . . . . . . . . . . . . . . . . Searches Triggered . | . . . . . . . . . . . . . . . . . . . . . . . . . . . . . . . Unchained Authorized 1 | . . . . . . . . . . . . . . . . . . . . . . . . . 1 . . . . . Construction Impeded 1 | . . . . . . 1 . . . . . . . . . . . . . . . . . . . . . . . . Haulers Reinforced 2 | . . . . . . 1 . . . . . 1 . . . . . . . . . . . . . . . . . . Active Scanning Responses . | . . . . . . . . . . . . . . . . . . . . . . . . . . . . . . . Cargo Convoy Interrupts . | . . . . . . . . . . . . . . . . . . . . . . . . . . . . . . . Stealth | -11 -10 -10 -10 -9 -9 -6 -6 -6 -6 -6 -5 -5 -5 -5 -5 -5 -5 -4 -4 -4 -4 -4 -3 -3 -3 -2 -2 -2 -1 -1 --------- Run | Yrd Mat Min Sub Rec Scr Fac Low Low Zio Dee Pro Fac Was Fac Upp Upp Zhi Pro Fac Upp Upp War Pro Res Qua Res Tes Frg Acc Com Distress Signals 42 | . 2 . . 1 . 2 . . . . . 4 . 3 . . . . . . . 1 . 2 . . . 19 1 7 Communications Jammed 169 | . . . . . . 49 . . . . . 52 . 1 . . . . 23 . . . . . 44 . . . . . Distress Signals 169 | . . . . . . 49 . . . . . 52 . 1 . . . . 23 . . . . . 44 . . . . . Times Spotted 2135 | . 20 2 14 20 . 76 6 11 1 14 7 95 3 86 5 1 . . 110 6 . 123 25 119 129 176 170 249 302 365 Peak Tracking Total 64 | . 8 2 3 6 . 7 2 1 1 3 2 8 1 10 3 1 . 1 25 6 . 21 8 12 19 21 25 14 16 64 Tactical Retreats 70 | . 1 . 1 . . 1 . . . . . 6 . . . . . . 5 . . 1 1 1 1 1 . 33 5 13 Traps | -11 -10 -10 -10 -9 -9 -6 -6 -6 -6 -6 -5 -5 -5 -5 -5 -5 -5 -4 -4 -4 -4 -4 -3 -3 -3 -2 -2 -2 -1 -1 ------- Run | Yrd Mat Min Sub Rec Scr Fac Low Low Zio Dee Pro Fac Was Fac Upp Upp Zhi Pro Fac Upp Upp War Pro Res Qua Res Tes Frg Acc Com Traps Triggered 42 | . . . 5 . . 3 . . . . . 1 . . . . . . 4 . . . 1 3 1 . . 13 2 9 Indirectly 3 | . . . . . . . . . . . . . . . . . . . 3 . . . . . . . . . . . Trap Hack Attempts . | . . . . . . . . . . . . . . . . . . . . . . . . . . . . . . . Triggered . | . . . . . . . . . . . . . . . . . . . . . . . . . . . . . . . Disarmed . | . . . . . . . . . . . . . . . . . . . . . . . . . . . . . . . Reprogrammed 6 | . . . . . . . . . . . . . . . . . . . 6 . . . . . . . . . . . Reused 1 | . . . . . . . . . . . . . . . . . . . 1 . . . . . . . . . . . Traps Extracted . | . . . . . . . . . . . . . . . . . . . . . . . . . . . . . . . Installed . | . . . . . . . . . . . . . . . . . . . . . . . . . . . . . . . Triggered 1 | . . . . . . . . . . . . . . . . . . . 1 . . . . . . . . . . . Machines | -11 -10 -10 -10 -9 -9 -6 -6 -6 -6 -6 -5 -5 -5 -5 -5 -5 -5 -4 -4 -4 -4 -4 -3 -3 -3 -2 -2 -2 -1 -1 ---------- Run | Yrd Mat Min Sub Rec Scr Fac Low Low Zio Dee Pro Fac Was Fac Upp Upp Zhi Pro Fac Upp Upp War Pro Res Qua Res Tes Frg Acc Com Machines Disabled 384 | . . . 1 . . 6 . 2 3 2 . 36 . 52 3 . . . 55 2 . 5 10 18 36 13 22 75 21 22 Max in Single Turn 8 | . . . 1 . . 2 . 1 1 1 . 4 . 6 2 . . . 8 2 . 2 2 3 3 1 5 5 2 3 Garrison Access 14 | . . . . . . 2 . . . . . 2 . 2 . . . . 2 . . . . 2 1 1 . 1 1 . Phase Generator 1 | . . . . . . . . . . . . . . . . . . . . . . . . . . . . . . 1 Energy Cycler 2 | . . . . . . . . . . . . . . . . . . . . . . . . . . . . . 2 . Machines Repaired . | . . . . . . . . . . . . . . . . . . . . . . . . . . . . . . . Machines Dismantled 3 | . . . . . . . . . 3 . . . . . . . . . . . . . . . . . . . . . Machines Sabotaged . | . . . . . . . . . . . . . . . . . . . . . . . . . . . . . . . Overloaded Fab Kills . | . . . . . . . . . . . . . . . . . . . . . . . . . . . . . . . Hacking | -11 -10 -10 -10 -9 -9 -6 -6 -6 -6 -6 -5 -5 -5 -5 -5 -5 -5 -4 -4 -4 -4 -4 -3 -3 -3 -2 -2 -2 -1 -1 --------- Run | Yrd Mat Min Sub Rec Scr Fac Low Low Zio Dee Pro Fac Was Fac Upp Upp Zhi Pro Fac Upp Upp War Pro Res Qua Res Tes Frg Acc Com Machines Accessed 109 | . 9 2 4 11 4 14 . 1 . . . 16 . 3 1 2 3 . 12 . 2 4 3 4 4 . 2 5 . 3 Terminals 43 | . 7 . . 6 . 6 . . . . . 6 . 1 1 . . . 6 . . . 1 1 3 . 1 1 . 3 Fabricators 12 | . . . . . . 3 . . . . . 5 . 1 . . . . 1 . . . 1 . . . 1 . . . Repair Stations 1 | . . . . . . 1 . . . . . . . . . . . . . . . . . . . . . . . . Recycling Units 17 | . 2 . . 4 . 1 . . . . . 2 . 1 . . . . 2 . . . 1 1 . . . 3 . . Scanalyzers 4 | . . . . . . 1 . . . . . 1 . . . . . . 1 . . . . 1 . . . . . . Garrison Access 9 | . . . . . . 2 . . . . . 2 . . . . . . 2 . . . . 1 1 . . 1 . . Total Hacks 326 | . 29 2 9 43 12 53 . 1 . . . 48 . 5 6 4 12 . 34 . 6 4 6 12 12 . 12 11 . 5 Successful 212 | . 11 2 9 28 12 33 . 1 . . . 30 . 4 6 4 12 . 24 . 6 4 4 6 3 . 5 4 . 4 Failed 111 | . 18 . . 14 . 19 . . . . . 18 . 1 . . . . 9 . . . 2 6 9 . 7 7 . 1 Catastrophic 20 | . 1 . . 1 . 3 . . . . . 3 . 1 . . . . 1 . . . . 1 4 . 3 2 . . Database Lockouts 3 | . . . . 1 . 1 . . . . . . . . . . . . 1 . . . . . . . . . . . Manual 169 | . 27 . . 36 . 28 . . . . . 23 . 3 . . . . 23 . . . 4 3 6 . 7 7 . 2 Terminals 175 | . 23 . . 32 . 31 . . . . . 24 . 2 6 . . . 25 . . . 1 7 8 . 10 1 . 5 Fabricators 33 | . . . . . . 9 . . . . . 15 . 2 . . . . 2 . . . 3 . . . 2 . . . Repair Stations 3 | . . . . . . 3 . . . . . . . . . . . . . . . . . . . . . . . . Recycling Units 37 | . 6 . . 10 . 1 . . . . . 6 . 1 . . . . 3 . . . 2 1 . . . 7 . . Scanalyzers 12 | . . . . . . 6 . . . . . 1 . . . . . . 2 . . . . 3 . . . . . . Garrison Access 15 | . . . . . . 3 . . . . . 2 . . . . . . 2 . . . . 1 4 . . 3 . . Terminal Hacks 109 | . 1 2 9 14 12 6 . 1 . . . 10 . . 6 4 12 . 11 . 6 4 1 2 2 . 2 1 . 3 Record 30 | . . . 6 1 4 . . 1 . . . . . . 6 3 1 . . . 5 3 . . . . . . . . Part Schematic 7 | . . . . 1 . . . . . . . 1 . . . . 3 . 1 . . . . . 1 . . . . . Robot Analysis 20 | . . . . 8 7 . . . . . . 1 . . . . 4 . . . . . . . . . . . . . Prototype ID Bank 10 | . . . . 2 . 1 . . . . . 1 . . . . 4 . 1 . . . . . 1 . . . . . Open Door 7 | . . 2 1 . . . . . . . . . . . . 1 . . . . 1 1 1 . . . . . . . Branch Access Points 5 | . . . . . . 1 . . . . . 2 . . . . . . 1 . . . . 1 . . . . . . Emergency Access Points 1 | . . . . . . . . . . . . . . . . . . . . . . . . . . . . . . 1 Machine Index 1 | . . . . . . . . . . . . . . . . . . . 1 . . . . . . . . . . . Terminal Index 4 | . 1 . . 1 . 1 . . . . . . . . . . . . 1 . . . . . . . . . . . Fabricator Index 3 | . . . . . . 1 . . . . . 1 . . . . . . 1 . . . . . . . . . . . Recycling Unit Index 1 | . . . . . . . . . . . . . . . . . . . 1 . . . . . . . . . . . Garrison Index 1 | . . . . . . . . . . . . . . . . . . . 1 . . . . . . . . . . . Alert Level 1 | . . . . . . . . . . . . . . . . . . . 1 . . . . . . . . . . . Unreport Threat 5 | . . . . . . 1 . . . . . 3 . . . . . . . . . . . 1 . . . . . . Locate Traps 1 | . . . . . . . . . . . . . . . . . . . . . . . . . . . . . . 1 Reprogram Traps 1 | . . . . . . . . . . . . . . . . . . . 1 . . . . . . . . . . . Recall Investigation 1 | . . . . . . . . . . . . . . . . . . . . . . . . . . . 1 . . . Recall Extermination 2 | . . . . . . . . . . . . 1 . . . . . . 1 . . . . . . . . . . . Registered Components 2 | . . . . 1 . 1 . . . . . . . . . . . . . . . . . . . . . . . . Proto ID Catalog 3 | . . . 1 . 1 . . . . . . . . . . . . . . . . . . . . . . 1 . . Protovariant Controls 1 | . . . . . . . . . . . . . . . . . . . . . . . . . . . 1 . . . Disengage Seal 1 | . . . . . . . . . . . . . . . . . . . . . . . . . . . . . . 1 Release Object 1 | . . . 1 . . . . . . . . . . . . . . . . . . . . . . . . . . . Fabricator Hacks 24 | . . . . . . 7 . . . . . 10 . 2 . . . . 2 . . . 1 . . . 2 . . . Load Schematic 12 | . . . . . . 3 . . . . . 5 . 1 . . . . 1 . . . 1 . . . 1 . . . Build 12 | . . . . . . 4 . . . . . 5 . 1 . . . . 1 . . . . . . . 1 . . . Repair Station Hacks 2 | . . . . . . 2 . . . . . . . . . . . . . . . . . . . . . . . . Scan Component 1 | . . . . . . 1 . . . . . . . . . . . . . . . . . . . . . . . . Repair 1 | . . . . . . 1 . . . . . . . . . . . . . . . . . . . . . . . . Recycling Unit Hacks 6 | . . . . 4 . . . . . . . 1 . . . . . . . . . . 1 . . . . . . . Retrieve Components 6 | . . . . 4 . . . . . . . 1 . . . . . . . . . . 1 . . . . . . . Scanalyzer 7 | . . . . . . 5 . . . . . 1 . . . . . . . . . . . 1 . . . . . . Insert Component 1 | . . . . . . 1 . . . . . . . . . . . . . . . . . . . . . . . . Analyze 1 | . . . . . . 1 . . . . . . . . . . . . . . . . . . . . . . . . Retrieve Study 5 | . . . . . . 3 . . . . . 1 . . . . . . . . . . . 1 . . . . . . Garrison Access Hacks 8 | . . . . . . 2 . . . . . 2 . . . . . . 2 . . . . 1 . . . 1 . . Unlock Access 1 | . . . . . . . . . . . . . . . . . . . 1 . . . . . . . . . . . Seal Access 7 | . . . . . . 2 . . . . . 2 . . . . . . 1 . . . . 1 . . . 1 . . Unauthorized Hacks 56 | . 10 . . 10 . 11 . . . . . 6 . 2 . . . . 9 . . . 1 2 1 . 1 2 . 1 Terminals 39 | . 9 . . 6 . 9 . . . . . 3 . 1 . . . . 7 . . . . 1 1 . 1 . . 1 Assimilate 4 | . 1 . . . . 1 . . . . . 1 . 1 . . . . . . . . . . . . . . . . Botnet 12 | . 1 . . 1 . 2 . . . . . 2 . . . . . . 2 . . . . 1 1 . 1 . . 1 Operators 2 | . 1 . . . . 1 . . . . . . . . . . . . . . . . . . . . . . . . Skim 21 | . 6 . . 5 . 5 . . . . . . . . . . . . 5 . . . . . . . . . . . Fabricators 2 | . . . . . . 1 . . . . . 1 . . . . . . . . . . . . . . . . . . Haulers 2 | . . . . . . 1 . . . . . 1 . . . . . . . . . . . . . . . . . . Repair Stations . | . . . . . . . . . . . . . . . . . . . . . . . . . . . . . . . Recycling Units 15 | . 1 . . 4 . 1 . . . . . 2 . 1 . . . . 2 . . . 1 1 . . . 2 . . Tunnel 5 | . 1 . . 4 . . . . . . . . . . . . . . . . . . . . . . . . . . Fedlink 10 | . . . . . . 1 . . . . . 2 . 1 . . . . 2 . . . 1 1 . . . 2 . . Scanalyzers . | . . . . . . . . . . . . . . . . . . . . . . . . . . . . . . . Garrison Access . | . . . . . . . . . . . . . . . . . . . . . . . . . . . . . . . Data Cores Recovered 5 | . . . . . . . . . . . . . . 1 . . . . 1 . . . . . 1 . . . . 2 Used . | . . . . . . . . . . . . . . . . . . . . . . . . . . . . . . . Hacking Detections 60 | . 9 . . 6 . 11 . . . . . 10 . 1 . . . . 9 . . . 2 2 4 . 2 2 . 2 Full Trace Events 19 | . 2 . . 1 . 4 . . . . . 5 . . . . . . 1 . . . 2 . 2 . 1 1 . . Feedback Events 2 | . . . . . . . . . . . . . . . . . . . . . . . 1 . . . . 1 . . Corruption 2 | . . . . . . . . . . . . . . . . . . . . . . . 1 . . . . 1 . . Feedback Blocked . | . . . . . . . . . . . . . . . . . . . . . . . . . . . . . . . Robot Schematics Acquired 17 | . . . . . . . . . 3 . . . . . . . . . . . . . . . 6 . 3 5 . . Robots Built . | . . . . . . . . . . . . . . . . . . . . . . . . . . . . . . . Authchips . | . . . . . . . . . . . . . . . . . . . . . . . . . . . . . . . Time . | . . . . . . . . . . . . . . . . . . . . . . . . . . . . . . . Total Robot Build Rating . | . . . . . . . . . . . . . . . . . . . . . . . . . . . . . . . Part Schematics Acquired 110 | . . . . 4 14 9 . 1 20 1 . 6 4 . 2 1 6 1 2 1 . 2 . 2 13 . 6 15 . . Parts Built 12 | . . . . . . 3 . . . . . 5 . 1 . . . . 1 . . . . . . . 2 . . . Authchips 2 | . . . . . . . . . . . . 1 . 1 . . . . . . . . . . . . . . . . Time 1164 | . . . . . . 300 . . . . . 653 . 80 . . . . 47 . . . . . . . 84 . . . Total Part Build Rating 87 | . . . . . . 22 . . . . . 42 . 10 . . . . 5 . . . . . . . 8 . . . Part Studies Acquired 5 | . . . . . . 3 . . . . . 1 . . . . . . . . . . . 1 . . . . . . Parts Repaired 1 | . . . . . . 1 . . . . . . . . . . . . . . . . . . . . . . . . Time 53 | . . . . . . 53 . . . . . . . . . . . . . . . . . . . . . . . . Parts Recycled . | . . . . . . . . . . . . . . . . . . . . . . . . . . . . . . . Recycled Matter . | . . . . . . . . . . . . . . . . . . . . . . . . . . . . . . . Retrieved Matter . | . . . . . . . . . . . . . . . . . . . . . . . . . . . . . . . Retrieved Components 26 | . . . . 17 . . . . . . . 2 . . . . . . . . . . 7 . . . . . . . Parts Scanalyzed 1 | . . . . . . 1 . . . . . . . . . . . . . . . . . . . . . . . . Part Schematics Acquired 1 | . . . . . . 1 . . . . . . . . . . . . . . . . . . . . . . . . Parts Damaged 1 | . . . . . . 1 . . . . . . . . . . . . . . . . . . . . . . . . Bothacking | -11 -10 -10 -10 -9 -9 -6 -6 -6 -6 -6 -5 -5 -5 -5 -5 -5 -5 -4 -4 -4 -4 -4 -3 -3 -3 -2 -2 -2 -1 -1 ------------ Run | Yrd Mat Min Sub Rec Scr Fac Low Low Zio Dee Pro Fac Was Fac Upp Upp Zhi Pro Fac Upp Upp War Pro Res Qua Res Tes Frg Acc Com Used RIF Installer . | . . . . . . . . . . . . . . . . . . . . . . . . . . . . . . . Robots Hacked 11 | . . . . 2 4 4 . . . . . 1 . . . . . . . . . . . . . . . . . . Non-combat 7 | . . . . 1 1 4 . . . . . 1 . . . . . . . . . . . . . . . . . . Combat 4 | . . . . 1 3 . . . . . . . . . . . . . . . . . . . . . . . . . Robot Hacks Applied 12 | . . . . 2 4 5 . . . . . 1 . . . . . . . . . . . . . . . . . . parse_system 6 | . . . . 2 4 . . . . . . . . . . . . . . . . . . . . . . . . . no_distress 2 | . . . . . . 2 . . . . . . . . . . . . . . . . . . . . . . . . find_chute 3 | . . . . . . 2 . . . . . 1 . . . . . . . . . . . . . . . . . . find_fabricator 1 | . . . . . . 1 . . . . . . . . . . . . . . . . . . . . . . . . Relay Couplers Released 5 | . . . . . . . . . . . . 1 . . . . . . . . . . . . . 2 . 1 1 . Machine Destruction 5 | . . . . . . . . . . . . 1 . . . . . . . . . . . . . 2 . 1 1 . Fabnet Peak Effective % . | . . . . . . . . . . . . . . . . . . . . . . . . . . . . . . . Robots Rewired 43 | . . . . 33 . . . 2 . . . . . . . . . . . 2 . . 6 . . . . . . . Allies Hacked 1 | . . . . . . . . . . . . . . 1 . . . . . . . . . . . . . . . . Hacks Repelled . | . . . . . . . . . . . . . . . . . . . . . . . . . . . . . . . Allies | -11 -10 -10 -10 -9 -9 -6 -6 -6 -6 -6 -5 -5 -5 -5 -5 -5 -5 -4 -4 -4 -4 -4 -3 -3 -3 -2 -2 -2 -1 -1 -------- Run | Yrd Mat Min Sub Rec Scr Fac Low Low Zio Dee Pro Fac Was Fac Upp Upp Zhi Pro Fac Upp Upp War Pro Res Qua Res Tes Frg Acc Com Total Allies 68 | . 1 4 . 33 . 1 . 2 . . . 1 18 . . . . . . 2 . . 6 . . . . . . . Largest Group 29 | . 1 5 5 29 26 21 . 2 2 2 . 1 18 18 . . . . . 2 2 2 4 3 . . . . . . Highest-Rated Group 638 | . 10 81 81 408 382 326 . 40 40 40 . 26 638 638 . . . . . 95 95 95 206 192 . . . . . . Highest-Rated Ally 64 | . 10 31 31 34 34 34 . 20 20 20 . 26 50 50 . . . . . 48 48 48 64 64 . . . . . . Initial UFD Resources 87 | . . . . . . 22 32 32 32 32 35 35 49 49 51 51 51 55 55 69 69 69 71 81 85 87 87 87 . . Total Orders 4 | . . . . 1 . . . . . 2 . . . . . . . . . . . . . 1 . . . . . . STAY 4 | . . . . 1 . . . . . 2 . . . . . . . . . . . . . 1 . . . . . . Ally Attacks 490 | . . . 23 50 . 35 . . . 3 . . . 311 . . . . . . . 23 9 36 . . . . . . Total Damage 11090 | . . . 360 745 . 796 . . . 120 . . . 6902 . . . . . . . 759 178 1230 . . . . . . Kills 82 | . . . 1 12 . 13 . . . 1 . . . 44 . . . . . . . 2 2 7 . . . . . . Allies Corrupted 1 | . . . . . . 1 . . . . . . . . . . . . . . . . . . . . . . . . Allies Melted 3 | . . . . . . . . . . . . . . . . . . . . . . 1 . . . . . 2 . . Intel | -11 -10 -10 -10 -9 -9 -6 -6 -6 -6 -6 -5 -5 -5 -5 -5 -5 -5 -4 -4 -4 -4 -4 -3 -3 -3 -2 -2 -2 -1 -1 ------- Run | Yrd Mat Min Sub Rec Scr Fac Low Low Zio Dee Pro Fac Was Fac Upp Upp Zhi Pro Fac Upp Upp War Pro Res Qua Res Tes Frg Acc Com Active Infowar (turns) 37961 | 25 467 221 1568 1978 2363 3655 533 752 1073 1403 701 3641 611 960 494 747 207 709 2307 510 299 969 1200 1415 1476 537 827 3436 2749 128 Terrain 37956 | 25 467 221 1568 1978 2363 3655 533 752 1073 1403 701 3641 611 960 494 747 207 709 2307 510 299 969 1200 1415 1472 537 827 3435 2749 128 Cloaking 1 | . . . . . . . . . . . . . . . . . . . . . . . . . . . . 1 . . Jamming 19475 | . . . . . . 2303 533 752 1073 1403 701 3632 597 960 494 747 207 709 2307 510 299 777 . . 1471 . . . . . ECM 2 | . . . . . . . . . . . . . . . . . . . . . . . . . 2 . . . . . Robot Analysis Total 20 | . . . . 8 7 . . . . . . 1 . . . . 4 . . . . . . . . . . . . . Derelict Logs Recovered 14 | . . 1 1 . . . 2 1 1 . 2 . . . 1 1 . 1 . 1 2 . . . . . . . . . Drone Launches . | . . . . . . . . . . . . . . . . . . . . . . . . . . . . . . . Drone Recoveries . | . . . . . . . . . . . . . . . . . . . . . . . . . . . . . . . Exploration | -11 -10 -10 -10 -9 -9 -6 -6 -6 -6 -6 -5 -5 -5 -5 -5 -5 -5 -4 -4 -4 -4 -4 -3 -3 -3 -2 -2 -2 -1 -1 ------------- Run | Yrd Mat Min Sub Rec Scr Fac Low Low Zio Dee Pro Fac Was Fac Upp Upp Zhi Pro Fac Upp Upp War Pro Res Qua Res Tes Frg Acc Com Turns Passed 57474 | 108 467 224 1568 1978 2363 3655 533 752 1073 1403 701 3641 611 960 494 747 207 709 2307 510 299 2918 1200 1415 2034 1369 2003 6841 2847 11537 Spaces Moved 38121 | 52 571 457 1767 1119 1689 1993 374 475 781 986 473 2218 463 547 344 607 159 546 1432 343 243 1632 826 685 1328 676 1009 3701 1634 8991 Core . | . . . . . . . . . . . . . . . . . . . . . . . . . . . . . . . Treads 11 | . . . . . . . . . . . . . . . . . . . . . . . . . . . . . . 11 Legs 36133 | 52 46 . 772 1119 1689 1993 374 475 781 986 473 2218 463 547 344 607 159 546 1432 343 243 1632 826 685 1328 676 1009 3701 1634 8980 Wheels . | . . . . . . . . . . . . . . . . . . . . . . . . . . . . . . . Hover . | . . . . . . . . . . . . . . . . . . . . . . . . . . . . . . . Flight 1977 | . 525 457 995 . . . . . . . . . . . . . . . . . . . . . . . . . . . Fastest Speed 37 | 120 37 37 37 130 130 110 125 123 123 120 120 120 120 120 120 120 120 120 120 120 120 102 106 103 103 102 102 92 92 92 Average Speed 104 | 120 43 37 78 130 130 119 125 124 123 120 120 121 120 120 120 120 120 120 120 120 120 112 106 103 105 106 102 96 92 92 Slowest Speed 215 | 120 120 37 130 130 130 130 125 125 123 123 120 205 120 120 120 120 120 120 205 120 120 179 106 106 175 168 102 108 95 215 Overloaded Moves . | . . . . . . . . . . . . . . . . . . . . . . . . . . . . . . . Propulsion Burnouts . | . . . . . . . . . . . . . . . . . . . . . . . . . . . . . . . Robots Hopped 22 | . 9 11 2 . . . . . . . . . . . . . . . . . . . . . . . . . . . Potential Cave-ins 183 | . . . . . . . . . . . . . . 5 . . . . 2 . 1 13 . 7 . 4 3 24 8 116 Cave-ins Triggered 9 | . . . . . . . . . . . . . . . . . . . . . . . . . . 1 . 1 . 7 Teleports 3 | . . . . . . . . . . . . . . . . . . . . . . . . . 2 1 . . . . Exploration Rate (%) 61 | 4 77 87 67 88 85 39 60 59 79 69 63 41 92 25 52 79 62 82 38 58 44 81 65 20 93 23 72 83 44 71 Regions Visited 30 Branch Regions 21 Pre-discovered Areas 16 | . 1 1 1 5 . 1 . 1 . . . 1 . . . . . 1 1 . 3 . . . . . . . . . Known Exits Taken 23 | . . . . . 1 1 1 1 1 1 1 . . 1 1 1 1 1 1 1 1 1 1 1 1 1 1 1 1 . Unknown Exits Taken 5 | 1 1 1 1 1 . . . . . . . . . . . . . . . . . . . . . . . . . . Scrap Searched 25 | . . 1 5 . 4 . . 2 2 . 1 . . . 2 3 . 3 . 1 . . 1 . . . . . . . Spaces Dug 383 | . . . 1 . . . 2 4 . 4 4 21 . . . . . . 3 . . . 24 . . . 20 83 30 187 Terrain Destroyed 14655 | . . . 48 . . 27 10 17 . 19 31 756 109 725 221 48 . 100 1077 168 17 598 580 716 843 797 641 2332 2052 2723 Melee . | . . . . . . . . . . . . . . . . . . . . . . . . . . . . . . . Projectile 13840 | . . . 3 . . 6 10 17 . 19 31 538 109 589 221 48 . 100 916 168 17 566 580 716 781 793 641 2332 1978 2661 AOE 815 | . . . 45 . . 21 . . . . . 218 . 136 . . . . 161 . . 32 . . 62 4 . . 74 62 Terrain Rammed 1 | . . . . . . . . . . . . . . . . . . . . . . . . . . . . . . 1 Walls Destroyed . | . . . . . . . . . . . . . . . . . . . . . . . . . . . . . . . Machines Disabled . | . . . . . . . . . . . . . . . . . . . . . . . . . . . . . . . Actions | -11 -10 -10 -10 -9 -9 -6 -6 -6 -6 -6 -5 -5 -5 -5 -5 -5 -5 -4 -4 -4 -4 -4 -3 -3 -3 -2 -2 -2 -1 -1 --------- Run | Yrd Mat Min Sub Rec Scr Fac Low Low Zio Dee Pro Fac Was Fac Upp Upp Zhi Pro Fac Upp Upp War Pro Res Qua Res Tes Frg Acc Com Total 48086 | 78 711 493 1875 1579 1841 2897 403 578 833 1139 555 2863 503 680 379 616 175 564 1704 407 245 2277 979 1025 1624 945 1653 5122 2191 11152 Wait 3426 | . 102 30 8 74 129 571 1 9 1 54 42 305 17 3 6 6 4 3 38 7 1 340 31 66 4 5 350 258 24 937 Move 38043 | 52 552 436 1763 1118 1688 1992 373 474 780 985 472 2218 462 545 343 606 158 545 1431 342 242 1631 825 684 1327 674 1008 3698 1633 8986 Hop 20 | . 9 9 2 . . . . . . . . . . . . . . . . . . . . . . . . . . . Pick Up 153 | 1 1 2 3 4 1 6 . 1 3 7 . 13 3 . 2 . 1 . 3 . . 6 . 5 9 . 3 25 7 47 Fast Attach 214 | 3 3 2 5 1 4 21 2 1 1 18 . 12 2 5 . . 6 . 15 . . 28 2 8 10 3 11 14 4 33 Attach 68 | . . . 1 1 . 1 . 1 . 3 1 9 . 2 . . . . . . . 3 . 1 3 2 2 20 2 16 Detach 53 | . . . . . 1 3 . . . 3 . 4 . 2 . . . . 1 . . 5 . 1 . 3 2 15 1 12 Swap 90 | . 1 1 6 1 3 16 . 1 5 4 4 6 . 4 . . . . 5 . . 3 . 2 7 2 4 9 2 4 Drop 289 | 1 4 5 8 4 3 13 1 1 3 26 1 16 4 5 2 . 6 . 19 . . 28 1 10 13 3 12 25 3 72 Fire 3294 | 17 36 4 42 31 . 164 15 28 3 26 20 155 7 82 20 4 . 16 144 14 2 186 71 162 138 159 136 758 334 520 Melee 9 | . . . . 2 4 2 . . . . . 1 . . . . . . . . . . . . . . . . . . Ram 1 | . . . . . . . . . . . . . . . . . . . . . . . . . . . . . . 1 Kick 205 | 4 . . 2 3 . 9 . . . . . 10 . . . . . . 4 . . . . 1 . . . . 1 171 Crush . | . . . . . . . . . . . . . . . . . . . . . . . . . . . . . . . Escape Stasis 83 | . . . . . . . . . . . . . . 1 . . . . 5 . . . . 11 5 12 26 6 7 10 Rewire 430 | . . . . 318 . . 1 38 . . . . . . . . . . . 27 . . 35 . . . . . . 11 Trap . | . . . . . . . . . . . . . . . . . . . . . . . . . . . . . . . Miscellaneous 1708 | . 3 4 35 22 8 99 10 24 37 13 15 114 8 31 6 . . . 39 17 . 47 14 74 108 82 99 294 173 332 Route ------- -11/Scrapyard -10/Materials (discovered 6 exits: [*Mat x3] / *Min x2 / *Sub) -10/Mines (discovered 3 exits: [*Mat x2] / *Sub) -10/Subcaves (discovered 2 exits: [*Mat] / *Rec) -9/Recycling (discovered 2 exits: [*Fac] / *Scr) -9/Scraptown (discovered 2 exits: *Fac x2) -6/Factory (discovered 8 exits: *Fac x4 / *Low x2 / *Ext x2) -6/Lower Caves -6/Lower Caves (discovered 2 exits: Fac / *Zio) -6/Zion (discovered 2 exits: *Dee / [*Pro]) -6/Deep Caves -5/Proximity Caves -5/Factory (discovered 2 exits: Upp x2) -5/Waste -5/Factory (discovered 2 exits: *Fac / *Upp) -5/Upper Caves -5/Upper Caves (discovered 2 exits: *Fac / *Zhi) -5/Zhirov -4/Proximity Caves -4/Factory (discovered 5 exits: Res x2 / *Upp x2 / *Arm) -4/Upper Caves -4/Upper Caves -4/Warlord -3/Proximity Caves -3/Research (discovered 4 exits: *Res x2 / *Qua x2) -3/Quarantine -2/Research (discovered 2 exits: *Acc / *Tes) -2/Testing (discovered 3 exits: *Acc / [*Sec] / *Frg) -2/Protoforge -1/Access (discovered 2 exits: *Sur / *Com) -1/Command 0b11 Command History --------- Turn | Location | Event 1 | -11/Scrapyard | Discovered new exit (range 3) 86 | -11/Scrapyard | Upgraded with Propulsion slot (x1) 86 | -11/Scrapyard | Upgraded with Weapon slot (x1) 109 | -11/Scrapyard | Entered Materials 188 | -10/Materials | Discovered new exit (range 14) 188 | -10/Materials | Discovered new exit (range 12) 217 | -10/Materials | Discovered new exit (range 13) 224 | -10/Materials | Discovered new exit (range 11) 317 | -10/Materials | Build established: Mutant 428 | -10/Materials | Discovered new exit (range 15) 510 | -10/Materials | Discovered new exit (range 15) 576 | -10/Materials | Entered Mines 576 | -10/Mines | Accompanied by 1 ally 576 | -10/Mines | Reached level 2 605 | -10/Mines | Discovered new exit (range 6) 607 | -10/Mines | Received a Mining Laser from a helpful Derelict 620 | -10/Mines | Discovered new exit (range 7) 634 | -10/Mines | Received a Rocket Launcher from a helpful Derelict 657 | -10/Mines | Learned location of Zion (-6) 670 | -10/Mines | Assisted by bots powering up and referring to "LRC-V3" 689 | -10/Mines | Discovered new exit (range 8) 718 | -10/Mines | Met a Derelict shopkeep closing up shop 730 | -10/Mines | Found the Drone Emporium 732 | -10/Mines | Found Prototype Device 732 | -10/Mines | Identified Sensor Drone Bay 800 | -10/Mines | Entered Subcaves 800 | -10/Subcaves | Accompanied by 5 allies 802 | -10/Subcaves | Reached level 3 947 | -10/Subcaves | Discovered new exit (range 16) 985 | -10/Subcaves | Shifting Twisted Machinery released Sub. Beam Cannon 999 | -10/Subcaves | Shifting Twisted Machinery released Sub. Laser 1005 | -10/Subcaves | Visited Clippyterm 1006 | -10/Subcaves | Learned Factory garrison access intel 1006 | -10/Subcaves | Learned location of Section 7 (-2) 1090 | -10/Subcaves | Learned Materials terminal intel 1112 | -10/Subcaves | Ambushed by Subdweller buried in earth 1192 | -10/Subcaves | Visited 4L-MR0's lab 1243 | -10/Subcaves | Found Cargo Legs 1296 | -10/Subcaves | Attached Cargo Legs, gained temporary slots: Utility x2 1296 | -10/Subcaves | Found SUBCON Basin 1750 | -10/Subcaves | Core integrity fell below 50% 1914 | -10/Subcaves | Ambushed by angry Subdweller bent on revenge 2335 | -10/Subcaves | Discovered new exit (range 14) 2368 | -10/Subcaves | Entered Recycling 2370 | -9/Recycling | Reached level 4 2591 | -9/Recycling | Discovered new exit (range 13) 2860 | -9/Recycling | Reached level 5 2916 | -9/Recycling | Build established: Commander-Mutant 3150 | -9/Recycling | Lost 3 allies 3202 | -9/Recycling | Reached level 6 3451 | -9/Recycling | Learned location of 1 exit from Storage 3525 | -9/Recycling | Learned Storage terminal intel 3648 | -9/Recycling | Learned 2 Storage zone layouts 3695 | -9/Recycling | Learned Materials emergency access door positions 3708 | -9/Recycling | Scanned before Scraplab entrance 3728 | -9/Recycling | Discovered new exit (range 9) 3730 | -9/Recycling | Learned Storage emergency access door positions 3750 | -9/Recycling | Entered Scraplab 3801 | -9/Recycling | Reached level 7 3830 | -9/Recycling | Learned Materials emergency access door positions 3944 | -9/Recycling | Tech Extrapolator generated special schematic: Deep Structural Scanner 4346 | -9/Recycling | Entered Scraptown 4346 | -9/Scraptown | Accompanied by 26 allies 4543 | -9/Scraptown | Visited UFD Registry 4543 | -9/Scraptown | Registered with UFD as "Deathsys" 4565 | -9/Scraptown | Visited CR-KLE's Repair Center 4577 | -9/Scraptown | Visited Assassins FH 4646 | -9/Scraptown | Discovered new exit (range 11) 4963 | -9/Scraptown | Tech Extrapolator generated special schematic: Machine Rigger 5071 | -9/Scraptown | Received an X-ray algorithm 5086 | -9/Scraptown | Visited Analyses Database 5116 | -9/Scraptown | Visited Junk Repository 5250 | -9/Scraptown | Visited Science Guys 5312 | -9/Scraptown | Visited Chapter 10 5356 | -9/Scraptown | Visited Cartography Club 5382 | -9/Scraptown | Visited Scrap Suit Storage 5425 | -9/Scraptown | Visited Junk Repository 5469 | -9/Scraptown | Visited Infowarlord's Domain 5481 | -9/Scraptown | Found Exp. Signal Interpreter 5669 | -9/Scraptown | Visited Fellowship of the Rings 5707 | -9/Scraptown | Visited The Evicted 5742 | -9/Scraptown | Visited Awakened 5786 | -9/Scraptown | Visited Symbiants 6253 | -9/Scraptown | CR-KLE repaired 4 parts 6381 | -9/Scraptown | Upgraded with Power slot (x1) 6381 | -9/Scraptown | Upgraded with Utility slot (x2) 6528 | -9/Scraptown | Met Optimus 6528 | -9/Scraptown | Accepted into 0bPrime 6602 | -9/Scraptown | Discovered new exit (range 6) 6608 | -9/Scraptown | Identified exit to Factory 6708 | -9/Scraptown | Build established: Commander-Skirmisher 6709 | -9/Scraptown | Entered Factory 6709 | -6/Factory | Accompanied by 21 allies 6710 | -6/Factory | Loaded intel: 4 garrison access locations 6711 | -6/Factory | Reached level 8 6713 | -6/Factory | Upgraded with Weapon slot (x1) 6734 | -6/Factory | Reached level 9 6827 | -6/Factory | Loaded intel: 8 recycling unit locations 6949 | -6/Factory | Reached level 10 6977 | -6/Factory | Lost 5 allies 6979 | -6/Factory | Central database locked down 6983 | -6/Factory | Discovered new exit (range 11) 7016 | -6/Factory | Identified exit to Lower Caves 7067 | -6/Factory | Build established: Commander-Gunner 7151 | -6/Factory | Identified exit to Extension 7521 | -6/Factory | Reached level 11 7537 | -6/Factory | Build established: Commander-Skirmisher 7595 | -6/Factory | Lost 7 allies 7602 | -6/Factory | Upgraded with Propulsion slot (x1) 7713 | -6/Factory | Reached level 12 7742 | -6/Factory | Lost 3 allies 7779 | -6/Factory | Destroyed 7 combat bots 7911 | -6/Factory | Fabricated Imp. Thunder Leg? 7972 | -6/Factory | Repaired Broken CPS Tube? 7974 | -6/Factory | Build established: Hacker-Skirmisher 8023 | -6/Factory | Attached CPS modules to H-61 Shepherd 8380 | -6/Factory | Core integrity fell below 50% 8411 | -6/Factory | Core integrity fell below 20% 8798 | -6/Factory | Reached level 13 8819 | -6/Factory | Fabricated Hvy. Beamcaster (x1) 8954 | -6/Factory | Upgraded with Utility slot (x1) 9023 | -6/Factory | Discovered new exit (range 16) 9506 | -6/Factory | Reached level 14 9511 | -6/Factory | Upgraded with Weapon slot (x1) 9954 | -6/Factory | Identified exit to Factory 10081 | -6/Factory | Learned Extension non-interactive machine intel 10172 | -6/Factory | Learned Extension trap positions 10200 | -6/Factory | Learned location of 1 exit from Proximity Caves 10209 | -6/Factory | First assault squad dispatched 10364 | -6/Factory | Entered Lower Caves 10366 | -6/Lower Caves | Reached level 15 10388 | -6/Lower Caves | Learned Factory trap positions 10720 | -6/Lower Caves | Found Alien Artifact 10720 | -6/Lower Caves | Identified Core Expander 10720 | -6/Lower Caves | Installed Core Expander, added new Propulsion slot 10841 | -6/Lower Caves | Discovered new exit (range 14) 10855 | -6/Lower Caves | Learned Factory terminal intel 10896 | -6/Lower Caves | Identified exit to Lower Caves 10897 | -6/Lower Caves | Entered another Lower Caves area 10929 | -6/Lower Caves | Reached level 16 11076 | -6/Lower Caves | Upgraded with Utility slot (x1) 11233 | -6/Lower Caves | Found Alien Artifact 11301 | -6/Lower Caves | Attracted the attention of an 0b10 outpost 11469 | -6/Lower Caves | Discovered new exit (range 9) 11637 | -6/Lower Caves | Identified exit to Zion 11649 | -6/Lower Caves | Entered Zion 11649 | -6/Zion | Accompanied by 2 allies 11651 | -6/Zion | Reached level 17 11754 | -6/Zion | Found Prototype Device 11755 | -6/Zion | Identified Mobile Refinery Mk. CCLXVII 11782 | -6/Zion | Discovered new exit (range 10) 11963 | -6/Zion | Tech Extrapolator generated special schematic: Active Sensor Spoofer 12131 | -6/Zion | Turned away by Imprinter 12206 | -6/Zion | Given the Hacking Drone Bay 12263 | -6/Zion | Learned Factory terminal intel 12432 | -6/Zion | Found Prototype Device 12432 | -6/Zion | Identified Phasing AFG 12561 | -6/Zion | Discovered new exit (range 15) 12710 | -6/Zion | Saw the warning signs outside the Deep Caves entrance 12715 | -6/Zion | Identified exit to Deep Caves 12722 | -6/Zion | Entered Deep Caves 12722 | -6/Deep Caves | Accompanied by 2 allies 12923 | -6/Deep Caves | Attacked by Z-Imprinter 12929 | -6/Deep Caves | Destroyed Z-Imprinter 12962 | -6/Deep Caves | Found Prototype Device 12963 | -6/Deep Caves | Identified Zio. Metafield Generator 12967 | -6/Deep Caves | Found Prototype Protection 12968 | -6/Deep Caves | Identified Zio. Weapon Casing 13094 | -6/Deep Caves | Z-Facility disabled 13581 | -6/Deep Caves | Found Zio. Weapon Casing 13805 | -6/Deep Caves | Discovered new exit (range 16) 14124 | -6/Deep Caves | Identified exit to Proximity Caves 14125 | -6/Deep Caves | Entered Proximity Caves 14127 | -5/Proximity Caves | Reached level 18 14633 | -5/Proximity Caves | Reached level 19 14767 | -5/Proximity Caves | Learned Factory security intel 14826 | -5/Proximity Caves | Entered Factory 14827 | -5/Factory | Identified exit to Upper Caves 14828 | -5/Factory | Loaded intel: 101 trap records 14828 | -5/Factory | Reached level 20 14830 | -5/Factory | Loaded intel: 26 terminal locations 15104 | -5/Factory | Loaded intel: 8 recycling unit locations 15104 | -5/Factory | Learned location of Protoforge (-2) 15378 | -5/Factory | Reached level 21 15520 | -5/Factory | Upgraded with Utility slot (x1) 15650 | -5/Factory | Fabricated Hyp. Gauss Cannon? 15842 | -5/Factory | Tech Extrapolator generated special schematic: Hyp. Alpha Cannon 16083 | -5/Factory | Watched by a mysterious "MATRIX" hacker 16434 | -5/Factory | Fabricated Hyp. Alpha Cannon? 16514 | -5/Factory | Fabricated Hyp. Alpha Cannon? 16631 | -5/Factory | Reached level 22 16663 | -5/Factory | Fabricated Hyp. Alpha Cannon? 16994 | -5/Factory | Upgraded with Power slot (x2) 17226 | -5/Factory | First assault squad dispatched 17797 | -5/Factory | Tech Extrapolator generated special schematic: Mak. Core Shielding 17805 | -5/Factory | Destroyed 8 combat bots 17910 | -5/Factory | Build established: Generator-Tank 17992 | -5/Factory | Reached level 23 18297 | -5/Factory | Fabricated Hyp. Alpha Cannon? 18467 | -5/Factory | Sucked down chute 18467 | -5/Factory | Entered Waste 18477 | -5/Waste | Spotted C-40 Crusher 18480 | -5/Waste | Destroyed C-40 Crusher 18512 | -5/Waste | Spotted C-40 Crusher 18512 | -5/Waste | Spotted C-40 Crusher 18513 | -5/Waste | Destroyed C-40 Crusher 18513 | -5/Waste | Destroyed C-40 Crusher 18555 | -5/Waste | Destroyed C-40 Crusher 18575 | -5/Waste | Spotted C-40 Crusher 18576 | -5/Waste | Destroyed C-40 Crusher 18586 | -5/Waste | Spotted C-40 Crusher 18589 | -5/Waste | Destroyed C-40 Crusher 18611 | -5/Waste | Discovered new exit (range 16) 18968 | -5/Waste | Warlord forces began an assault 19050 | -5/Waste | Identified exit to Factory 19078 | -5/Waste | Entered Factory 19078 | -5/Factory | Accompanied by 18 allies 19080 | -5/Factory | Loaded intel: 26 terminal locations 19180 | -5/Factory | Fabricated Hyp. Alpha Cannon? 19282 | -5/Factory | Reached level 24 19333 | -5/Factory | Lost 3 allies 19368 | -5/Factory | Loaded intel: 8 recycling unit locations 19378 | -5/Factory | First assault squad dispatched 19395 | -5/Factory | High security lockdown imminent 19475 | -5/Factory | High security lockdown engaged 19504 | -5/Factory | Upgraded with Power slot (x1) 19611 | -5/Factory | Reached level 25 19634 | -5/Factory | Discovered new exit (range 8) 19638 | -5/Factory | Destroyed 8 combat bots 19652 | -5/Factory | Identified exit to Factory 19751 | -5/Factory | Destroyed 9 combat bots 19877 | -5/Factory | Lost 9 allies 19913 | -5/Factory | Destroyed 28 combat bots 20038 | -5/Factory | Entered Upper Caves 20062 | -5/Upper Caves | Reached level 26 20105 | -5/Upper Caves | Destroyed 13 combat bots 20156 | -5/Upper Caves | Learned location of 2 exits from Lower Caves 20156 | -5/Upper Caves | Learned Factory trap positions 20156 | -5/Upper Caves | Learned Armory terminal intel 20270 | -5/Upper Caves | Destroyed 11 combat bots 20416 | -5/Upper Caves | Learned Factory emergency access door positions 20463 | -5/Upper Caves | Tech Extrapolator generated special schematic: Heat Bomb Trap 20511 | -5/Upper Caves | Discovered new exit (range 10) 20530 | -5/Upper Caves | Identified exit to Upper Caves 20532 | -5/Upper Caves | Entered another Upper Caves area 20599 | -5/Upper Caves | Discovered exit to Factory (range 7) 20639 | -5/Upper Caves | Build established: Generator-Skirmisher 21016 | -5/Upper Caves | Entered an active Warlord outpost 21020 | -5/Upper Caves | Learned Factory emergency access door positions 21024 | -5/Upper Caves | Learned Factory emergency access door positions 21024 | -5/Upper Caves | Learned Research emergency access door positions 21024 | -5/Upper Caves | Learned Research garrison access intel 21139 | -5/Upper Caves | Discovered new exit (range 14) 21278 | -5/Upper Caves | Identified exit to Zhirov 21279 | -5/Upper Caves | Entered Zhirov 21279 | -5/Zhirov | Discovered new exit (range 3) 21302 | -5/Zhirov | Met Zhirov 21345 | -5/Zhirov | Zhirov requested help retrieving the SGEMP Prototype 21367 | -5/Zhirov | Found Alien Artifact 21367 | -5/Zhirov | Identified Integrated Reactor 21367 | -5/Zhirov | Installed Integrated Reactor, increased core energy generation (+10) 21420 | -5/Zhirov | Found Alien Artifact 21484 | -5/Zhirov | Identified exit to Proximity Caves 21486 | -5/Zhirov | Entered Proximity Caves 21603 | -4/Proximity Caves | Destroyed 9 combat bots 21621 | -4/Proximity Caves | Tech Extrapolator generated special schematic: Energy Deflector 21749 | -4/Proximity Caves | Destroyed B-86 Titan 22043 | -4/Proximity Caves | Discovered exit to Factory (range 16) 22145 | -4/Proximity Caves | Learned location of Armory (-4) 22195 | -4/Proximity Caves | Entered Factory 22196 | -4/Factory | Loaded intel: 116 trap records 22315 | -4/Factory | Identified exit to Upper Caves 22315 | -4/Factory | Identified exit to Armory 22522 | -4/Factory | Learned Testing emergency access door positions 22575 | -4/Factory | Learned Testing interactive machine intel 22619 | -4/Factory | Learned Testing terminal intel 22655 | -4/Factory | Learned 4 Research zone layouts 22680 | -4/Factory | Learned location of 1 exit from Upper Caves 22720 | -4/Factory | Learned Quarantine stockpile data 22733 | -4/Factory | Loaded intel: 8 recycling unit locations 22752 | -4/Factory | Learned Research scanalyzer intel 22794 | -4/Factory | Identified exit to Research 22944 | -4/Factory | Reached level 27 22996 | -4/Factory | Destroyed 7 combat bots 23019 | -4/Factory | Upgraded with Propulsion slot (x1) 23078 | -4/Factory | Identified exit to Garrison 23210 | -4/Factory | Central database locked down 23386 | -4/Factory | Fabricated Hvy. Reactive Plating? 23445 | -4/Factory | First assault squad dispatched 23492 | -4/Factory | Destroyed 8 combat bots 23677 | -4/Factory | Destroyed 8 combat bots 23834 | -4/Factory | Reached level 28 23869 | -4/Factory | Destroyed 12 combat bots 24038 | -4/Factory | High security lockdown imminent 24118 | -4/Factory | High security lockdown engaged 24163 | -4/Factory | Destroyed 9 combat bots 24364 | -4/Factory | Destroyed 11 combat bots 24502 | -4/Factory | Entered Upper Caves 24503 | -4/Upper Caves | Identified exit to Upper Caves 24548 | -4/Upper Caves | Tech Extrapolator generated special schematic: Wartreads 24548 | -4/Upper Caves | Destroyed 7 combat bots 24631 | -4/Upper Caves | Learned location of 1 exit from Research 24725 | -4/Upper Caves | Attracted the attention of an 0b10 outpost 24750 | -4/Upper Caves | Destroyed 9 combat bots 24907 | -4/Upper Caves | Encountered a Warlord checkpoint 25012 | -4/Upper Caves | Entered another Upper Caves area 25012 | -4/Upper Caves | Accompanied by 2 allies 25067 | -4/Upper Caves | Encountered a Warlord checkpoint 25084 | -4/Upper Caves | Learned location of Testing (-2) 25179 | -4/Upper Caves | Learned location of 1 exit from Research 25204 | -4/Upper Caves | Entered an active Warlord outpost 25211 | -4/Upper Caves | Discovered new exit (range 19) 25212 | -4/Upper Caves | Learned Research emergency access door positions 25212 | -4/Upper Caves | Learned Extension garrison access intel 25310 | -4/Upper Caves | Identified exit to Warlord 25311 | -4/Upper Caves | Entered Warlord 25311 | -4/Warlord | Accompanied by 2 allies 25351 | -4/Warlord | System corruption cleaned by Quarantine Array 25730 | -4/Warlord | Received a Watcher feed algorithm from an ecstatic Tinkerer 25768 | -4/Warlord | Visited the Vortex Lab 25774 | -4/Warlord | Warlord's base attacked by MAIN.C 25786 | -4/Warlord | Found Prototype Energy Cannon 25786 | -4/Warlord | Identified Vortex Driver 25794 | -4/Warlord | Found Prototype Piercing Weapon 25794 | -4/Warlord | Identified Vortex Lance 26051 | -4/Warlord | Found Prototype Device 26051 | -4/Warlord | Identified Exp. Phase Shifter 26062 | -4/Warlord | Found Prototype Device 26062 | -4/Warlord | Identified Exp. Focal Shield 26080 | -4/Warlord | Found Prototype Reactor 26080 | -4/Warlord | Identified Vortex Chain Reactor 26086 | -4/Warlord | Found Prototype Hackware 26086 | -4/Warlord | Identified Ghost Barrier 26091 | -4/Warlord | Lost 3 allies 26124 | -4/Warlord | Warlord forces counterattacked 26127 | -4/Warlord | Destroyed Striker 26130 | -4/Warlord | Destroyed Striker 26144 | -4/Warlord | Destroyed Executioner 26151 | -4/Warlord | Reached level 29 26154 | -4/Warlord | Upgraded with Utility slot (x1) 26172 | -4/Warlord | Destroyed 8 combat bots 26206 | -4/Warlord | Found Prototype Device 26206 | -4/Warlord | Identified Adv. Kinecellerator 26209 | -4/Warlord | Found Prototype Processor 26209 | -4/Warlord | Identified Exp. Targeting Computer 26212 | -4/Warlord | Found Prototype Processor 26212 | -4/Warlord | Identified Exp. Core Analyzer 26220 | -4/Warlord | Spotted Striker 26220 | -4/Warlord | Destroyed Striker 26227 | -4/Warlord | Destroyed Executioner 26253 | -4/Warlord | Discovered new exit (range 16) 26262 | -4/Warlord | Destroyed 7 combat bots 26271 | -4/Warlord | Lost 3 allies 26274 | -4/Warlord | Spotted Executioner 26274 | -4/Warlord | Spotted Executioner 26274 | -4/Warlord | Spotted B-86 Titan 26274 | -4/Warlord | Destroyed Executioner 26279 | -4/Warlord | Destroyed Executioner 26284 | -4/Warlord | Spotted B-90 Cyclops 26297 | -4/Warlord | Allies destroyed B-86 Titan 26315 | -4/Warlord | Destroyed 9 combat bots 26328 | -4/Warlord | Lost 4 allies 26352 | -4/Warlord | Build established: Generator-Tank 26374 | -4/Warlord | Destroyed Striker 26380 | -4/Warlord | Spotted Executioner 26385 | -4/Warlord | Destroyed Executioner 26413 | -4/Warlord | Destroyed 12 combat bots 26422 | -4/Warlord | Lost 8 allies 26449 | -4/Warlord | Warlord base infiltrated, sounded retreat 26451 | -4/Warlord | Upgraded with Propulsion slot (x1) 26483 | -4/Warlord | Spotted Striker 26483 | -4/Warlord | Destroyed Striker 26490 | -4/Warlord | Destroyed Executioner 26531 | -4/Warlord | Destroyed 14 combat bots 26534 | -4/Warlord | Lost 7 allies 26535 | -4/Warlord | Identified exit to Proximity Caves 26575 | -4/Warlord | Spotted Striker 26594 | -4/Warlord | Destroyed Striker 26616 | -4/Warlord | Spotted Executioner 26616 | -4/Warlord | Destroyed Executioner 26622 | -4/Warlord | Spotted Executioner 26624 | -4/Warlord | Destroyed Executioner 26660 | -4/Warlord | Rebuked by Warlord 26708 | -4/Warlord | Destroyed 23 combat bots 26788 | -4/Warlord | Destroyed Executioner 26799 | -4/Warlord | Destroyed Striker 26825 | -4/Warlord | Destroyed 12 combat bots 26835 | -4/Warlord | Lost 4 allies 26875 | -4/Warlord | Destroyed Executioner 26882 | -4/Warlord | Destroyed Striker 26937 | -4/Warlord | Destroyed 20 combat bots 26989 | -4/Warlord | Destroyed Executioner 27047 | -4/Warlord | Destroyed 21 combat bots 27076 | -4/Warlord | Spotted Striker 27078 | -4/Warlord | Destroyed Striker 27082 | -4/Warlord | Destroyed Striker 27102 | -4/Warlord | Reached level 30 27126 | -4/Warlord | Destroyed 18 combat bots 27175 | -4/Warlord | Destroyed Executioner 27179 | -4/Warlord | Destroyed Striker 27183 | -4/Warlord | Spotted Striker 27186 | -4/Warlord | Destroyed Striker 27257 | -4/Warlord | Destroyed 19 combat bots 27464 | -4/Warlord | Spotted Striker 27465 | -4/Warlord | Destroyed Striker 27530 | -4/Warlord | Destroyed 18 combat bots 27635 | -4/Warlord | Destroyed Striker 27687 | -4/Warlord | Spotted Executioner 27688 | -4/Warlord | Destroyed Executioner 27695 | -4/Warlord | Destroyed Striker 27719 | -4/Warlord | Destroyed Striker 27751 | -4/Warlord | Destroyed Striker 27774 | -4/Warlord | Destroyed Executioner 27796 | -4/Warlord | Destroyed Striker 27824 | -4/Warlord | Destroyed 38 combat bots 28093 | -4/Warlord | Found Vortex Driver 28229 | -4/Warlord | Entered Proximity Caves 28251 | -3/Proximity Caves | Attracted the attention of an 0b10 outpost 28284 | -3/Proximity Caves | Destroyed 8 combat bots 28413 | -3/Proximity Caves | Destroyed 11 combat bots 28521 | -3/Proximity Caves | Destroyed B-86 Titan 28550 | -3/Proximity Caves | Entered a huge 0b10 base via the front door 28700 | -3/Proximity Caves | Discovered exit to Research (range 19) 28753 | -3/Proximity Caves | Destroyed 10 combat bots 28818 | -3/Proximity Caves | Loaded intel: 1 recycling unit location 28887 | -3/Proximity Caves | Reached level 31 29373 | -3/Proximity Caves | Upgraded with Power slot (x1) 29429 | -3/Proximity Caves | Entered Research 29429 | -3/Research | Accompanied by 3 allies 29430 | -3/Research | Identified exit to Quarantine 29430 | -3/Research | Identified exit to Research 29433 | -3/Research | Loaded intel: 6 scanalyzer locations 29434 | -3/Research | Loaded intel: 4 garrison access locations 29471 | -3/Research | Loaded intel: 5 recycling unit locations 29479 | -3/Research | Garrison activated, responded to threat 29532 | -3/Research | Destroyed 14 combat bots 29550 | -3/Research | Discovered exit to Research (range 20) 29609 | -3/Research | Found Prototype Device 29609 | -3/Research | Identified System Purifier 29616 | -3/Research | Found Faulty System Purifier 29698 | -3/Research | High security lockdown imminent 29778 | -3/Research | High security lockdown engaged 29910 | -3/Research | Garrison activated, responded to threat 29963 | -3/Research | Lost 3 allies 29999 | -3/Research | Destroyed 19 combat bots 30030 | -3/Research | Reached level 32 30046 | -3/Research | Spotted Investigator 30049 | -3/Research | Scanned by Researcher 30058 | -3/Research | Spotted Striker 30060 | -3/Research | Destroyed Striker 30093 | -3/Research | Spotted Executioner 30106 | -3/Research | Destroyed Executioner 30128 | -3/Research | Destroyed Investigator 30155 | -3/Research | Spotted Striker 30155 | -3/Research | Spotted Executioner 30159 | -3/Research | Destroyed Executioner 30165 | -3/Research | Destroyed Striker 30186 | -3/Research | Destroyed 42 combat bots 30338 | -3/Research | Spotted Striker 30343 | -3/Research | Spotted Striker 30353 | -3/Research | Destroyed Striker 30356 | -3/Research | Destroyed Striker 30384 | -3/Research | Destroyed 7 combat bots 30429 | -3/Research | Spotted Striker 30432 | -3/Research | Destroyed Striker 30461 | -3/Research | Destroyed Striker 30463 | -3/Research | Spotted Striker 30464 | -3/Research | Destroyed Striker 30485 | -3/Research | Destroyed 16 combat bots 30517 | -3/Research | Sterilization system engaged 30517 | -3/Research | Non-combat units ordered to evacuate 30608 | -3/Research | Spotted Executioner 30611 | -3/Research | Destroyed Executioner 30617 | -3/Research | Combat units ordered to evacuate 30645 | -3/Research | Destroyed 8 combat bots 30817 | -3/Research | Ambient heat levels rising (+10) 30844 | -3/Research | Entered Quarantine 30882 | -3/Quarantine | Found Alien Artifact 30889 | -3/Quarantine | Identified Dimensional Node Initializer 30889 | -3/Quarantine | Initialized slip node 30892 | -3/Quarantine | Found Alien Artifact 30893 | -3/Quarantine | Identified Transdimensional Reconstructor 30893 | -3/Quarantine | Warped through subspace to slip node 30901 | -3/Quarantine | Found Alien Artifact 30901 | -3/Quarantine | Identified Hpw. Transdimensional Reconstructor 30901 | -3/Quarantine | Warped through subspace to slip node 30906 | -3/Quarantine | Found Hpw. Transdimensional Reconstructor 30913 | -3/Quarantine | Found Dimensional Node Initializer 30931 | -3/Quarantine | Tech Extrapolator generated special schematic: Telecube 31094 | -3/Quarantine | First assault squad dispatched 31143 | -3/Quarantine | Build established: Generator-Skirmisher 31226 | -3/Quarantine | Destroyed 12 combat bots 31255 | -3/Quarantine | Cryocooling Duct disabled 31270 | -3/Quarantine | Ambient heat levels rising (+20) 31270 | -3/Quarantine | Non-combat units ordered to evacuate 31350 | -3/Quarantine | Unchained authorized (6S-H0T) 31451 | -3/Quarantine | Discovered exit to Research (range 8) 31662 | -3/Quarantine | Spotted 6S-H0T 31930 | -3/Quarantine | Reached level 33 32005 | -3/Quarantine | Destroyed 14 combat bots 32006 | -3/Quarantine | Core integrity fell below 50% 32021 | -3/Quarantine | High security lockdown imminent 32065 | -3/Quarantine | Destroyed 12 combat bots 32101 | -3/Quarantine | High security lockdown engaged 32205 | -3/Quarantine | Destroyed 18 combat bots 32240 | -3/Quarantine | Destroyed 8 combat bots 32257 | -3/Quarantine | Destroyed Investigator 32260 | -3/Quarantine | Destroyed Striker 32299 | -3/Quarantine | Destroyed 19 combat bots 32335 | -3/Quarantine | Upgraded with Propulsion slot (x1) 32475 | -3/Quarantine | Sterilization system engaged 32475 | -3/Quarantine | Non-combat units ordered to evacuate 32498 | -3/Quarantine | Destroyed 25 combat bots 32575 | -3/Quarantine | Combat units ordered to evacuate 32587 | -3/Quarantine | Found Alien Artifact 32590 | -3/Quarantine | Identified Subatomic Replicator 32613 | -3/Quarantine | Build established: Generator-Tank 32624 | -3/Quarantine | Spotted Alpha 7 32637 | -3/Quarantine | Destroyed Alpha 7 32666 | -3/Quarantine | Found Prototype Device 32666 | -3/Quarantine | Identified Exp. ECM Suite 32717 | -3/Quarantine | Found Alien Artifact 32717 | -3/Quarantine | Identified Terrabomb 32717 | -3/Quarantine | Used Terrabomb 32729 | -3/Quarantine | Found Terrabomb 32775 | -3/Quarantine | Ambient heat levels rising (+10) 32878 | -3/Quarantine | Entered Research 32987 | -2/Research | High security lockdown imminent 33067 | -2/Research | High security lockdown engaged 33203 | -2/Research | Reached level 34 33259 | -2/Research | Destroyed 23 combat bots 33401 | -2/Research | Discovered new exit (range 12) 33429 | -2/Research | Identified exit to Access 33437 | -2/Research | Destroyed 32 combat bots 33443 | -2/Research | Spotted Striker 33445 | -2/Research | Spotted Executioner 33450 | -2/Research | Destroyed Executioner 33454 | -2/Research | Destroyed Striker 33481 | -2/Research | Spotted Striker 33483 | -2/Research | Destroyed Striker 33546 | -2/Research | Spotted Executioner 33546 | -2/Research | Spotted Striker 33548 | -2/Research | Spotted Striker 33550 | -2/Research | Destroyed 19 combat bots 33558 | -2/Research | Spotted Striker 33561 | -2/Research | Warped through subspace 33603 | -2/Research | Spotted Executioner 33603 | -2/Research | Spotted Striker 33612 | -2/Research | Destroyed Striker 33612 | -2/Research | Destroyed Executioner 33629 | -2/Research | Crushed by falling debris 33749 | -2/Research | Destroyed Striker 33780 | -2/Research | Spotted Executioner 33780 | -2/Research | Spotted Executioner 33780 | -2/Research | Destroyed Executioner 33780 | -2/Research | Destroyed Executioner 33787 | -2/Research | Spotted Investigator 33798 | -2/Research | Destroyed Investigator 33812 | -2/Research | Spotted Executioner 33824 | -2/Research | Destroyed Executioner 33825 | -2/Research | Spotted Investigator 33843 | -2/Research | Spotted Striker 33847 | -2/Research | Destroyed Striker 33862 | -2/Research | Sterilization system engaged 33862 | -2/Research | Non-combat units ordered to evacuate 33863 | -2/Research | Reached level 35 33869 | -2/Research | Destroyed Investigator 33880 | -2/Research | Destroyed Executioner 33901 | -2/Research | Destroyed 35 combat bots 33934 | -2/Research | Spotted Striker 33937 | -2/Research | Destroyed Striker 33941 | -2/Research | System corruption reached 10% 33943 | -2/Research | Core integrity fell below 50% 33962 | -2/Research | Combat units ordered to evacuate 33984 | -2/Research | Destroyed 16 combat bots 34162 | -2/Research | Ambient heat levels rising (+10) 34217 | -2/Research | Discovered new exit (range 10) 34229 | -2/Research | Identified exit to Testing 34247 | -2/Research | Entered Testing 34249 | -2/Testing | Loaded intel: 18 interactive machine locations 34250 | -2/Testing | Loaded intel: 10 terminal locations 34260 | -2/Testing | Found Prototype Energy Gun 34260 | -2/Testing | Identified Tachyon Dispersion Ray 34417 | -2/Testing | Spotted Striker 34484 | -2/Testing | Fabricated Mak. System Restoration Module? 34497 | -2/Testing | First assault squad dispatched 34607 | -2/Testing | High security lockdown imminent 34665 | -2/Testing | Destroyed 8 combat bots 34687 | -2/Testing | High security lockdown engaged 34693 | -2/Testing | Destroyed 9 combat bots 34750 | -2/Testing | Spotted Striker 34750 | -2/Testing | Destroyed Striker 34754 | -2/Testing | Destroyed Striker 34760 | -2/Testing | Spotted Alpha 7 34771 | -2/Testing | Destroyed Alpha 7 34865 | -2/Testing | Spotted Striker 34867 | -2/Testing | Destroyed Striker 34872 | -2/Testing | Build established: Generator-Skirmisher 34882 | -2/Testing | Spotted Investigator 34885 | -2/Testing | Spotted Executioner 34895 | -2/Testing | Destroyed Executioner 34898 | -2/Testing | Destroyed Investigator 34933 | -2/Testing | Destroyed 26 combat bots 35031 | -2/Testing | Spotted Striker 35031 | -2/Testing | Spotted Striker 35038 | -2/Testing | Spotted Executioner 35040 | -2/Testing | Destroyed Striker 35040 | -2/Testing | Spotted Striker 35044 | -2/Testing | Destroyed Striker 35044 | -2/Testing | Destroyed Striker 35044 | -2/Testing | Destroyed Executioner 35055 | -2/Testing | Destroyed Striker 35065 | -2/Testing | Spotted Investigator 35083 | -2/Testing | Destroyed 21 combat bots 35138 | -2/Testing | Destroyed Investigator 35151 | -2/Testing | Found Prototype Launcher 35151 | -2/Testing | Identified Z-bomb Delivery System 35232 | -2/Testing | Build established: Generator-Tank 35286 | -2/Testing | Spotted Striker 35289 | -2/Testing | Destroyed Striker 35335 | -2/Testing | Destroyed 13 combat bots 35475 | -2/Testing | Spotted Striker 35481 | -2/Testing | Spotted Executioner 35492 | -2/Testing | Spotted Executioner 35492 | -2/Testing | Spotted Striker 35499 | -2/Testing | Destroyed Striker 35499 | -2/Testing | Destroyed Executioner 35500 | -2/Testing | Spotted Investigator 35506 | -2/Testing | Destroyed Executioner 35513 | -2/Testing | Destroyed Investigator 35515 | -2/Testing | Sterilization system engaged 35515 | -2/Testing | Non-combat units ordered to evacuate 35516 | -2/Testing | Reached level 36 35534 | -2/Testing | Destroyed Striker 35537 | -2/Testing | Destroyed Executioner 35562 | -2/Testing | Destroyed 49 combat bots 35615 | -2/Testing | Combat units ordered to evacuate 35654 | -2/Testing | Found Prototype Ballistic Cannon 35654 | -2/Testing | Identified Perforator 35742 | -2/Testing | Discovered exit to Access (range 17) 35815 | -2/Testing | Ambient heat levels rising (+10) 35907 | -2/Testing | Spotted Fortress 35936 | -2/Testing | Destroyed Fortress 35956 | -2/Testing | Found Prototype Device 35956 | -2/Testing | Identified Thermal Barrier 35964 | -2/Testing | Found Prototype Device 35964 | -2/Testing | Identified Exp. Force Field 35965 | -2/Testing | Ambient heat levels rising (+10) 36115 | -2/Testing | Ambient heat levels rising (+10) 36211 | -2/Testing | Discovered new exit (range 14) 36219 | -2/Testing | Discovered new exit (range 6) 36249 | -2/Testing | Identified exit to Protoforge 36250 | -2/Testing | Entered Protoforge 36319 | -2/Protoforge | Superfortress began startup sequence 36424 | -2/Protoforge | Discovered exit to Access (range 20) 36471 | -2/Protoforge | Initialized slip node 36500 | -2/Protoforge | First assault squad dispatched 36503 | -2/Protoforge | Spotted Hotshot 36505 | -2/Protoforge | Destroyed Hotshot 36677 | -2/Protoforge | Spotted AP7-3 36888 | -2/Protoforge | Spotted AP7-3 36895 | -2/Protoforge | Destroyed AP7-3 36922 | -2/Protoforge | Destroyed AP7-3 36947 | -2/Protoforge | Destroyed 8 combat bots 36993 | -2/Protoforge | Spotted SKR-2 36993 | -2/Protoforge | Spotted SKR-2 36994 | -2/Protoforge | Spotted SKR-2 37009 | -2/Protoforge | Destroyed SKR-2 37014 | -2/Protoforge | Destroyed SKR-2 37017 | -2/Protoforge | Destroyed SKR-2 37038 | -2/Protoforge | UFD initiated attack on Protoforge (Readiness: Adequate) 37038 | -2/Protoforge | Loaded intel: 3 recycling unit locations 37079 | -2/Protoforge | Optimus greeted in Protoforge 37106 | -2/Protoforge | Destroyed 11 combat bots 37127 | -2/Protoforge | Destroyed EXE-6 37173 | -2/Protoforge | Destroyed 12 combat bots 37216 | -2/Protoforge | Lost 12 allies 37235 | -2/Protoforge | Spotted Immortal 37241 | -2/Protoforge | Spotted Immortal 37243 | -2/Protoforge | Spotted Immortal 37254 | -2/Protoforge | Destroyed Immortal 37273 | -2/Protoforge | Destroyed Immortal 37280 | -2/Protoforge | Destroyed Immortal 37347 | -2/Protoforge | Destroyed Hotshot 37354 | -2/Protoforge | Destroyed V819-h 37361 | -2/Protoforge | Destroyed Hotshot 37361 | -2/Protoforge | Destroyed Hotshot 37395 | -2/Protoforge | Destroyed V298-q 37398 | -2/Protoforge | Destroyed V051-d 37410 | -2/Protoforge | Used Terrabomb 37410 | -2/Protoforge | Additional patrols dispatched to research labs 37416 | -2/Protoforge | Crushed by falling debris 37429 | -2/Protoforge | Forge Plexus network access discovered 37438 | -2/Protoforge | Spotted Decapitator 37438 | -2/Protoforge | Destroyed Decapitator 37439 | -2/Protoforge | Spotted Decapitator 37439 | -2/Protoforge | Spotted Decapitator 37439 | -2/Protoforge | Spotted Decapitator 37441 | -2/Protoforge | Destroyed Decapitator 37441 | -2/Protoforge | Destroyed Decapitator 37445 | -2/Protoforge | Destroyed Decapitator 37445 | -2/Protoforge | Destroyed Decapitator 37467 | -2/Protoforge | Destroyed Decapitator 37470 | -2/Protoforge | Destroyed Decapitator 37474 | -2/Protoforge | Destroyed Decapitator 37485 | -2/Protoforge | Destroyed Hotshot 37500 | -2/Protoforge | Spotted Hotshot 37506 | -2/Protoforge | Destroyed Hotshot 37523 | -2/Protoforge | Found Prototype Launcher 37524 | -2/Protoforge | Identified Cep. Concussive Dispersal Blaster 37537 | -2/Protoforge | Destroyed Decapitator 37545 | -2/Protoforge | Spotted Decapitator 37548 | -2/Protoforge | Destroyed Decapitator 37571 | -2/Protoforge | Destroyed Decapitator 37574 | -2/Protoforge | Destroyed V307-h 37581 | -2/Protoforge | Destroyed Decapitator 37602 | -2/Protoforge | Destroyed 7 combat bots 37604 | -2/Protoforge | Destroyed Hotshot 37605 | -2/Protoforge | Spotted V735-w 37610 | -2/Protoforge | Spotted Hotshot 37611 | -2/Protoforge | Destroyed V735-w 37618 | -2/Protoforge | Destroyed Hotshot 37695 | -2/Protoforge | UFD reported confirmed Drillbomb installation 37786 | -2/Protoforge | Used Subatomic Replicator to replicate Cep. Nanofilaments [Endoweave] 37788 | -2/Protoforge | Found Cep. Nanofilaments [Endoweave] 37789 | -2/Protoforge | Installed Cep. Nanofilaments [Endoweave], 5 resistances modified: KI +10%, TH +10%, EX -50%, S -20%, P +20% 37792 | -2/Protoforge | Installed Cep. Nanofilaments [Endoweave], 5 resistances modified: KI +10%, TH +10%, EX -50%, S -20%, P +20% 37864 | -2/Protoforge | Spotted AP7-3 37868 | -2/Protoforge | Spotted AP7-3 37889 | -2/Protoforge | Destroyed AP7-3 37896 | -2/Protoforge | Destroyed AP7-3 37979 | -2/Protoforge | Destroyed V827-l 37983 | -2/Protoforge | Spotted V398-r 37986 | -2/Protoforge | Destroyed V500-o 38032 | -2/Protoforge | Destroyed V648-s 38050 | -2/Protoforge | Destroyed Immortal 38057 | -2/Protoforge | Spotted Immortal 38057 | -2/Protoforge | Destroyed Immortal 38073 | -2/Protoforge | Build established: Generator-Skirmisher 38103 | -2/Protoforge | Found Prototype Protection 38104 | -2/Protoforge | Identified Med. Regenerative Plating 38197 | -2/Protoforge | Spotted Decapitator 38198 | -2/Protoforge | Spotted Decapitator 38199 | -2/Protoforge | Destroyed Decapitator 38202 | -2/Protoforge | Destroyed Decapitator 38215 | -2/Protoforge | Spotted Immortal 38219 | -2/Protoforge | Spotted Immortal 38222 | -2/Protoforge | Spotted Immortal 38224 | -2/Protoforge | Destroyed Immortal 38231 | -2/Protoforge | Destroyed Immortal 38235 | -2/Protoforge | Destroyed Immortal 38339 | -2/Protoforge | Destroyed Decapitator 38343 | -2/Protoforge | Destroyed Decapitator 38356 | -2/Protoforge | UFD reported confirmed Drillbomb installation 38363 | -2/Protoforge | Found Crosscalibrator 38374 | -2/Protoforge | Spotted Immortal 38383 | -2/Protoforge | Destroyed Immortal 38428 | -2/Protoforge | UFD reported confirmed Drillbomb installation 38460 | -2/Protoforge | Found Cep. Zero-point Core 38464 | -2/Protoforge | Found Cep. Zero-point Core 38484 | -2/Protoforge | Found Faulty Cep. Zero-point Core 38606 | -2/Protoforge | Found Cep. Energy Mantle 38990 | -2/Protoforge | Found Transdimensional Reconstructor 39100 | -2/Protoforge | Found Cep. Chromion Battery 39305 | -2/Protoforge | Spotted Striker 39306 | -2/Protoforge | Destroyed Striker 39311 | -2/Protoforge | Spotted Executioner 39313 | -2/Protoforge | Destroyed Executioner 39383 | -2/Protoforge | Destroyed 11 combat bots 39417 | -2/Protoforge | Destroyed Executioner 39421 | -2/Protoforge | Destroyed Executioner 39446 | -2/Protoforge | Spotted Immortal 39459 | -2/Protoforge | Destroyed Immortal 39461 | -2/Protoforge | Build established: Generator-Tank 39487 | -2/Protoforge | Destroyed 11 combat bots 39491 | -2/Protoforge | Destroyed Executioner 39493 | -2/Protoforge | Spotted Hotshot 39515 | -2/Protoforge | Destroyed Hotshot 39519 | -2/Protoforge | Destroyed Striker 39587 | -2/Protoforge | Spotted V684-n 39587 | -2/Protoforge | Spotted V695-u 39587 | -2/Protoforge | Spotted V456-c 39587 | -2/Protoforge | Spotted V126-a 39600 | -2/Protoforge | Destroyed V126-a 39604 | -2/Protoforge | Destroyed V684-n 39625 | -2/Protoforge | Destroyed V695-u 39720 | -2/Protoforge | UFD reported confirmed Drillbomb installation 39869 | -2/Protoforge | Found Prototype Processor 39869 | -2/Protoforge | Identified Cep. Core Analysis Suite 40026 | -2/Protoforge | Destroyed Executioner 40026 | -2/Protoforge | Destroyed Striker 40086 | -2/Protoforge | Destroyed Executioner 40094 | -2/Protoforge | Spotted Striker 40095 | -2/Protoforge | Destroyed Striker 40098 | -2/Protoforge | Destroyed Executioner 40117 | -2/Protoforge | Destroyed Immortal 40127 | -2/Protoforge | Spotted Hotshot 40129 | -2/Protoforge | Spotted Executioner 40135 | -2/Protoforge | Destroyed Executioner 40152 | -2/Protoforge | Destroyed Hotshot 40157 | -2/Protoforge | Spotted Decapitator 40159 | -2/Protoforge | Destroyed Decapitator 40170 | -2/Protoforge | Destroyed Hotshot 40177 | -2/Protoforge | Destroyed Immortal 40184 | -2/Protoforge | Destroyed Decapitator 40189 | -2/Protoforge | Spotted Decapitator 40190 | -2/Protoforge | Destroyed Decapitator 40197 | -2/Protoforge | Destroyed Executioner 40207 | -2/Protoforge | Destroyed Executioner 40214 | -2/Protoforge | Destroyed Decapitator 40235 | -2/Protoforge | Destroyed 19 combat bots 40249 | -2/Protoforge | Destroyed Executioner 40274 | -2/Protoforge | Destroyed Striker 40278 | -2/Protoforge | Spotted Immortal 40281 | -2/Protoforge | Destroyed Immortal 40296 | -2/Protoforge | Spotted Immortal 40298 | -2/Protoforge | Destroyed Immortal 40312 | -2/Protoforge | Destroyed Decapitator 40312 | -2/Protoforge | Spotted Executioner 40316 | -2/Protoforge | Destroyed Executioner 40354 | -2/Protoforge | Destroyed Executioner 40361 | -2/Protoforge | Destroyed Decapitator 40367 | -2/Protoforge | Spotted Striker 40368 | -2/Protoforge | Spotted Decapitator 40368 | -2/Protoforge | Destroyed Decapitator 40375 | -2/Protoforge | Destroyed Striker 40386 | -2/Protoforge | Spotted Immortal 40390 | -2/Protoforge | Destroyed Immortal 40396 | -2/Protoforge | Spotted Decapitator 40397 | -2/Protoforge | Destroyed Decapitator 40459 | -2/Protoforge | Spotted Executioner 40463 | -2/Protoforge | Destroyed Executioner 40487 | -2/Protoforge | Destroyed Hotshot 40497 | -2/Protoforge | Spotted Executioner 40498 | -2/Protoforge | Destroyed Executioner 40529 | -2/Protoforge | Destroyed 34 combat bots 40553 | -2/Protoforge | Destroyed Executioner 40553 | -2/Protoforge | Destroyed Immortal 40564 | -2/Protoforge | Destroyed Executioner 40574 | -2/Protoforge | Destroyed Hotshot 40581 | -2/Protoforge | Spotted Decapitator 40581 | -2/Protoforge | Destroyed Decapitator 40592 | -2/Protoforge | Destroyed Striker 40602 | -2/Protoforge | Destroyed Striker 40603 | -2/Protoforge | Spotted Striker 40606 | -2/Protoforge | Destroyed Striker 40613 | -2/Protoforge | Destroyed Hotshot 40644 | -2/Protoforge | Destroyed Immortal 40655 | -2/Protoforge | Destroyed Striker 40665 | -2/Protoforge | Destroyed Decapitator 40669 | -2/Protoforge | Destroyed Hotshot 40683 | -2/Protoforge | Destroyed Immortal 40697 | -2/Protoforge | Reached level 37 40697 | -2/Protoforge | Destroyed Decapitator 40711 | -2/Protoforge | Destroyed Executioner 40714 | -2/Protoforge | Destroyed Hotshot 40721 | -2/Protoforge | Destroyed Executioner 40739 | -2/Protoforge | Destroyed Hotshot 40753 | -2/Protoforge | Destroyed Immortal 40797 | -2/Protoforge | Spotted Decapitator 40798 | -2/Protoforge | Destroyed Decapitator 40802 | -2/Protoforge | Destroyed Executioner 40812 | -2/Protoforge | Destroyed Executioner 40816 | -2/Protoforge | Destroyed Decapitator 40827 | -2/Protoforge | Spotted Decapitator 40830 | -2/Protoforge | Destroyed Decapitator 40851 | -2/Protoforge | Destroyed Striker 40858 | -2/Protoforge | Destroyed Executioner 40879 | -2/Protoforge | Destroyed Immortal 40882 | -2/Protoforge | Destroyed Executioner 40886 | -2/Protoforge | Destroyed Hotshot 40889 | -2/Protoforge | Spotted Striker 40889 | -2/Protoforge | Destroyed Striker 40899 | -2/Protoforge | Spotted Decapitator 40900 | -2/Protoforge | Destroyed Decapitator 40903 | -2/Protoforge | Destroyed Decapitator 40949 | -2/Protoforge | Destroyed Striker 40958 | -2/Protoforge | Spotted Decapitator 40959 | -2/Protoforge | Destroyed Decapitator 40998 | -2/Protoforge | Destroyed 64 combat bots 41009 | -2/Protoforge | Spotted Immortal 41019 | -2/Protoforge | Destroyed Immortal 41029 | -2/Protoforge | Destroyed Striker 41033 | -2/Protoforge | Destroyed Hotshot 41050 | -2/Protoforge | Destroyed Striker 41054 | -2/Protoforge | Destroyed Immortal 41103 | -2/Protoforge | Destroyed Decapitator 41117 | -2/Protoforge | Destroyed Hotshot 41124 | -2/Protoforge | Destroyed Executioner 41127 | -2/Protoforge | Destroyed Hotshot 41134 | -2/Protoforge | Destroyed Executioner 41145 | -2/Protoforge | Destroyed Striker 41169 | -2/Protoforge | Destroyed Decapitator 41190 | -2/Protoforge | Destroyed Executioner 41204 | -2/Protoforge | Destroyed Striker 41211 | -2/Protoforge | Destroyed Executioner 41218 | -2/Protoforge | Destroyed Executioner 41229 | -2/Protoforge | Destroyed Hotshot 41264 | -2/Protoforge | Destroyed Immortal 41264 | -2/Protoforge | Destroyed Superfortress 41288 | -2/Protoforge | Destroyed 44 combat bots 41319 | -2/Protoforge | Found Prototype Processor 41319 | -2/Protoforge | Identified Exp. Core Analyzer 41322 | -2/Protoforge | UFD reported confirmed Drillbomb installation 41330 | -2/Protoforge | Found Prototype Device 41330 | -2/Protoforge | Identified Exp. Cloaking Device 41425 | -2/Protoforge | Found Exp. System Purifier 41683 | -2/Protoforge | Spotted Striker 41683 | -2/Protoforge | Spotted Executioner 41684 | -2/Protoforge | Destroyed Striker 41688 | -2/Protoforge | Destroyed Executioner 41761 | -2/Protoforge | Spotted Executioner 41761 | -2/Protoforge | Destroyed Executioner 41767 | -2/Protoforge | Spotted Striker 41768 | -2/Protoforge | Destroyed Striker 41785 | -2/Protoforge | Found UFD Drillbomb 41793 | -2/Protoforge | Destroyed Executioner 41796 | -2/Protoforge | Destroyed Executioner 41803 | -2/Protoforge | Spotted Striker 41803 | -2/Protoforge | Destroyed Striker 41807 | -2/Protoforge | Destroyed Striker 41831 | -2/Protoforge | Spotted Executioner 41834 | -2/Protoforge | Spotted Striker 41838 | -2/Protoforge | Destroyed Striker 41851 | -2/Protoforge | Destroyed Executioner 41853 | -2/Protoforge | Destroyed Striker 41859 | -2/Protoforge | Destroyed Executioner 41870 | -2/Protoforge | Spotted Striker 41893 | -2/Protoforge | Destroyed 30 combat bots 41928 | -2/Protoforge | Destroyed Executioner 41935 | -2/Protoforge | Destroyed Executioner 41938 | -2/Protoforge | Spotted Striker 41941 | -2/Protoforge | Destroyed Striker 41948 | -2/Protoforge | Destroyed Executioner 41954 | -2/Protoforge | Destroyed Striker 41960 | -2/Protoforge | Lost 5 allies 41978 | -2/Protoforge | Destroyed 16 combat bots 41997 | -2/Protoforge | Destroyed Striker 42000 | -2/Protoforge | Destroyed Striker 42004 | -2/Protoforge | Destroyed Executioner 42013 | -2/Protoforge | Destroyed Executioner 42026 | -2/Protoforge | Destroyed Striker 42030 | -2/Protoforge | UFD reported confirmed Drillbomb installation 42032 | -2/Protoforge | Spotted Striker 42060 | -2/Protoforge | Lost 4 allies 42073 | -2/Protoforge | Destroyed 15 combat bots 42091 | -2/Protoforge | Spotted Executioner 42092 | -2/Protoforge | Spotted Executioner 42094 | -2/Protoforge | Spotted Executioner 42097 | -2/Protoforge | Spotted Executioner 42098 | -2/Protoforge | Destroyed Executioner 42098 | -2/Protoforge | Destroyed Executioner 42101 | -2/Protoforge | Destroyed Executioner 42114 | -2/Protoforge | Destroyed Striker 42114 | -2/Protoforge | Destroyed Executioner 42149 | -2/Protoforge | Destroyed 14 combat bots 42151 | -2/Protoforge | Lost 3 allies 42154 | -2/Protoforge | UFD reported confirmed Drillbomb installation 42182 | -2/Protoforge | Installed UFD Drillbomb at designated target 42182 | -2/Protoforge | UFD reported confirmed Drillbomb installation 42188 | -2/Protoforge | Spotted Executioner 42188 | -2/Protoforge | Spotted Executioner 42188 | -2/Protoforge | Spotted Executioner 42188 | -2/Protoforge | Destroyed Executioner 42189 | -2/Protoforge | Spotted Striker 42192 | -2/Protoforge | Destroyed Executioner 42203 | -2/Protoforge | Destroyed Striker 42213 | -2/Protoforge | Spotted Executioner 42213 | -2/Protoforge | Spotted Executioner 42219 | -2/Protoforge | Destroyed Executioner 42240 | -2/Protoforge | Destroyed 14 combat bots 42274 | -2/Protoforge | Found UFD Drillbomb 42379 | -2/Protoforge | Installed UFD Drillbomb at designated target 42379 | -2/Protoforge | UFD reported confirmed Drillbomb installation 42440 | -2/Protoforge | Destroyed Striker 42469 | -2/Protoforge | Destroyed Executioner 42473 | -2/Protoforge | Destroyed Executioner 42476 | -2/Protoforge | Destroyed Executioner 42493 | -2/Protoforge | Spotted Striker 42495 | -2/Protoforge | Spotted Striker 42496 | -2/Protoforge | Destroyed Striker 42499 | -2/Protoforge | Destroyed Striker 42520 | -2/Protoforge | Destroyed 13 combat bots 42593 | -2/Protoforge | Destroyed Executioner 42593 | -2/Protoforge | Destroyed Striker 42595 | -2/Protoforge | Spotted Executioner 42597 | -2/Protoforge | Destroyed Executioner 42597 | -2/Protoforge | Spotted Executioner 42613 | -2/Protoforge | P-80 Master assimilated allied 02FLI-D 42624 | -2/Protoforge | Destroyed Executioner 42632 | -2/Protoforge | Spotted Striker 42645 | -2/Protoforge | Spotted Striker 42647 | -2/Protoforge | Destroyed Striker 42653 | -2/Protoforge | Destroyed Striker 42674 | -2/Protoforge | Destroyed 17 combat bots 42677 | -2/Protoforge | Lost 4 allies 42690 | -2/Protoforge | Destroyed Executioner 42695 | -2/Protoforge | Spotted Executioner 42701 | -2/Protoforge | Destroyed Executioner 42704 | -2/Protoforge | Destroyed Executioner 42708 | -2/Protoforge | Destroyed Executioner 42726 | -2/Protoforge | Spotted Striker 42729 | -2/Protoforge | Destroyed Striker 42742 | -2/Protoforge | Destroyed Executioner 42766 | -2/Protoforge | Destroyed 18 combat bots 42796 | -2/Protoforge | Destroyed Striker 42805 | -2/Protoforge | Spotted Striker 42805 | -2/Protoforge | Spotted Striker 42809 | -2/Protoforge | Destroyed Striker 42809 | -2/Protoforge | Destroyed 02F87-K 42809 | -2/Protoforge | Destroyed Striker 42819 | -2/Protoforge | Destroyed Executioner 42840 | -2/Protoforge | Lost 3 allies 42851 | -2/Protoforge | Destroyed 11 combat bots 43052 | -2/Protoforge | UFD reported confirmed Drillbomb installation 43053 | -2/Protoforge | UFD began Drillbomb countdown 43091 | -2/Protoforge | Entered Access 43237 | -1/Access | High security lockdown imminent 43290 | -1/Access | Upgraded with Utility slot (x1) 43317 | -1/Access | High security lockdown engaged 43318 | -1/Access | Reached level 38 43372 | -1/Access | Destroyed 9 combat bots 43449 | -1/Access | Energy Cycler disabled 43504 | -1/Access | Destroyed Executioner 43511 | -1/Access | Destroyed Striker 43514 | -1/Access | Spotted Striker 43514 | -1/Access | Destroyed Striker 43521 | -1/Access | Destroyed Executioner 43542 | -1/Access | Destroyed 10 combat bots 43549 | -1/Access | Destroyed Striker 43553 | -1/Access | Destroyed Striker 43744 | -1/Access | Destroyed Striker 43747 | -1/Access | Destroyed Striker 43763 | -1/Access | Spotted Striker 43770 | -1/Access | Spotted Executioner 43771 | -1/Access | Spotted Executioner 43778 | -1/Access | Spotted Executioner 43779 | -1/Access | Destroyed Striker 43783 | -1/Access | Destroyed Executioner 43786 | -1/Access | Destroyed Executioner 43789 | -1/Access | Destroyed Executioner 43813 | -1/Access | Destroyed 25 combat bots 43848 | -1/Access | Spotted Executioner 43862 | -1/Access | Spotted Executioner 43863 | -1/Access | Spotted Striker 43863 | -1/Access | Spotted Executioner 43865 | -1/Access | Destroyed Executioner 43876 | -1/Access | Destroyed Executioner 43876 | -1/Access | Destroyed Executioner 43876 | -1/Access | Destroyed Striker 43879 | -1/Access | Spotted Executioner 43880 | -1/Access | Destroyed Executioner 43880 | -1/Access | Destroyed Executioner 43904 | -1/Access | Destroyed 19 combat bots 43950 | -1/Access | Spotted Striker 43950 | -1/Access | Destroyed Striker 44059 | -1/Access | Spotted Investigator 44073 | -1/Access | Destroyed Investigator 44088 | -1/Access | Destroyed 17 combat bots 44123 | -1/Access | Spotted Striker 44126 | -1/Access | Destroyed Striker 44219 | -1/Access | Spotted Executioner 44224 | -1/Access | Destroyed Executioner 44239 | -1/Access | Spotted Executioner 44239 | -1/Access | Spotted Striker 44249 | -1/Access | Destroyed Executioner 44252 | -1/Access | Destroyed Striker 44257 | -1/Access | Spotted Striker 44285 | -1/Access | Destroyed Striker 44316 | -1/Access | Destroyed 38 combat bots 44316 | -1/Access | Spotted Executioner 44316 | -1/Access | Spotted Striker 44320 | -1/Access | Destroyed Executioner 44323 | -1/Access | Destroyed Striker 44341 | -1/Access | Destroyed Striker 44341 | -1/Access | Spotted Executioner 44344 | -1/Access | Destroyed Executioner 44351 | -1/Access | Spotted Investigator 44377 | -1/Access | Spotted Striker 44377 | -1/Access | Spotted Striker 44377 | -1/Access | Spotted Executioner 44379 | -1/Access | Destroyed Striker 44385 | -1/Access | Destroyed Striker 44388 | -1/Access | Destroyed Executioner 44395 | -1/Access | Destroyed Investigator 44413 | -1/Access | Destroyed 20 combat bots 44420 | -1/Access | Destroyed Striker 44434 | -1/Access | Spotted Striker 44434 | -1/Access | Spotted Executioner 44434 | -1/Access | Spotted Striker 44456 | -1/Access | Spotted Striker 44458 | -1/Access | Destroyed Striker 44458 | -1/Access | Destroyed Striker 44461 | -1/Access | Destroyed Striker 44484 | -1/Access | Reached level 39 44484 | -1/Access | Destroyed Executioner 44495 | -1/Access | Destroyed Executioner 44498 | -1/Access | Destroyed Executioner 44501 | -1/Access | Destroyed Executioner 44522 | -1/Access | Destroyed 13 combat bots 44691 | -1/Access | Spotted Striker 44694 | -1/Access | Spotted Executioner 44697 | -1/Access | Destroyed Executioner 44699 | -1/Access | Spotted Striker 44700 | -1/Access | Spotted Executioner 44702 | -1/Access | Spotted Striker 44714 | -1/Access | Destroyed Striker 44718 | -1/Access | Destroyed Striker 44720 | -1/Access | Spotted Striker 44720 | -1/Access | Spotted Executioner 44721 | -1/Access | Destroyed Striker 44726 | -1/Access | Destroyed Striker 44747 | -1/Access | Destroyed 7 combat bots 44756 | -1/Access | Spotted Striker 44762 | -1/Access | Destroyed Executioner 44773 | -1/Access | Destroyed Executioner 44779 | -1/Access | Destroyed Striker 44783 | -1/Access | Spotted Executioner 44786 | -1/Access | Spotted Executioner 44786 | -1/Access | Spotted Striker 44788 | -1/Access | Destroyed Executioner 44792 | -1/Access | Destroyed Striker 44795 | -1/Access | Destroyed Executioner 44807 | -1/Access | System corruption reached 10% 44838 | -1/Access | Destroyed 34 combat bots 44851 | -1/Access | Destroyed Executioner 44855 | -1/Access | Spotted Striker 44857 | -1/Access | Spotted Striker 44857 | -1/Access | Spotted Striker 44857 | -1/Access | Spotted Executioner 44857 | -1/Access | Spotted Striker 44857 | -1/Access | Spotted Executioner 44863 | -1/Access | Destroyed Striker 44863 | -1/Access | Destroyed Striker 44866 | -1/Access | Destroyed Striker 44870 | -1/Access | Destroyed Executioner 44873 | -1/Access | Destroyed Striker 44873 | -1/Access | Destroyed Executioner 44876 | -1/Access | Spotted Striker 44878 | -1/Access | Destroyed Striker 44879 | -1/Access | Spotted Executioner 44891 | -1/Access | Destroyed Executioner 44896 | -1/Access | Spotted Executioner 44906 | -1/Access | Destroyed Executioner 44929 | -1/Access | Destroyed Executioner 44933 | -1/Access | Sterilization system engaged 44933 | -1/Access | Destroyed Executioner 44942 | -1/Access | Destroyed Striker 44950 | -1/Access | Spotted Striker 44951 | -1/Access | Destroyed Striker 44956 | -1/Access | Spotted Striker 44957 | -1/Access | Destroyed Striker 44960 | -1/Access | Spotted Striker 44964 | -1/Access | Spotted Executioner 44964 | -1/Access | Spotted Executioner 44964 | -1/Access | Spotted Striker 44965 | -1/Access | Spotted Executioner 44972 | -1/Access | Destroyed Striker 44972 | -1/Access | Destroyed Executioner 44975 | -1/Access | Destroyed Striker 44985 | -1/Access | Destroyed Executioner 44988 | -1/Access | Destroyed Executioner 45009 | -1/Access | Destroyed 56 combat bots 45233 | -1/Access | Ambient heat levels rising (+10) 45233 | -1/Access | Destroyed 7 combat bots 45325 | -1/Access | Destroyed B-99 Colossus 45340 | -1/Access | Destroyed B-99 Colossus 45375 | -1/Access | Spotted Striker 45377 | -1/Access | Destroyed Striker 45378 | -1/Access | Spotted Striker 45380 | -1/Access | Destroyed Striker 45383 | -1/Access | Ambient heat levels rising (+10) 45413 | -1/Access | Discovered new exit (range 13) 45492 | -1/Access | Destroyed B-99 Colossus 45533 | -1/Access | Ambient heat levels rising (+10) 45683 | -1/Access | Ambient heat levels rising (+10) 45703 | -1/Access | Spotted B-99 Colossus 45833 | -1/Access | Ambient heat levels rising (+10) 45906 | -1/Access | Spotted B-99 Colossus 45923 | -1/Access | Spotted B-99 Colossus 45925 | -1/Access | Discovered new exit (range 11) 45937 | -1/Access | Identified exit to Command 45938 | -1/Access | Entered Command 45956 | -1/Command | Targeted by mysterious "MATRIX" hacker 46006 | -1/Command | Disengaged cave seal 46086 | -1/Command | Spotted B-99 Colossus 46102 | -1/Command | Destroyed B-99 Colossus 46138 | -1/Command | Spotted M Guard 46139 | -1/Command | Spotted M Guard 46139 | -1/Command | Spotted Combat Programmer 46141 | -1/Command | Spotted Combat Programmer 46165 | -1/Command | Core integrity fell below 50% 46175 | -1/Command | Core integrity fell below 20% 46177 | -1/Command | Destroyed M Guard 46188 | -1/Command | First assault squad dispatched 46190 | -1/Command | Destroyed M Guard 46205 | -1/Command | Destroyed Combat Programmer 46215 | -1/Command | Destroyed Combat Programmer 46215 | -1/Command | All MAIN.C guards destroyed 46260 | -1/Command | Destroyed 7 combat bots 46303 | -1/Command | High security lockdown imminent 46331 | -1/Command | Spotted Executioner 46342 | -1/Command | Spotted Executioner 46343 | -1/Command | Destroyed Executioner 46346 | -1/Command | Destroyed Executioner 46377 | -1/Command | Destroyed 16 combat bots 46383 | -1/Command | High security lockdown engaged 46460 | -1/Command | Destroyed 7 combat bots 46461 | -1/Command | Spotted Executioner 46467 | -1/Command | Spotted Executioner 46481 | -1/Command | Destroyed Executioner 46481 | -1/Command | Destroyed Executioner 46558 | -1/Command | Spotted Investigator 46561 | -1/Command | Destroyed Investigator 46593 | -1/Command | Destroyed 13 combat bots 46718 | -1/Command | Spotted Executioner 46720 | -1/Command | Spotted Executioner 46721 | -1/Command | Spotted Executioner 46723 | -1/Command | Destroyed Executioner 46723 | -1/Command | Destroyed Executioner 46725 | -1/Command | Spotted Executioner 46727 | -1/Command | Spotted Executioner 46729 | -1/Command | Spotted Executioner 46730 | -1/Command | Destroyed Executioner 46733 | -1/Command | Destroyed Executioner 46737 | -1/Command | Spotted Executioner 46738 | -1/Command | Spotted Striker 46743 | -1/Command | Destroyed Striker 46746 | -1/Command | Destroyed Executioner 46752 | -1/Command | Destroyed Executioner 46756 | -1/Command | Destroyed Executioner 46759 | -1/Command | Destroyed Executioner 46810 | -1/Command | Destroyed 39 combat bots 46868 | -1/Command | Found Prototype Processor 46869 | -1/Command | Identified Exp. Targeting Computer 46885 | -1/Command | Spotted Striker 46889 | -1/Command | Destroyed Striker 46895 | -1/Command | Spotted Executioner 46896 | -1/Command | Destroyed Executioner 46912 | -1/Command | Spotted Executioner 46912 | -1/Command | Spotted Striker 46934 | -1/Command | Destroyed Striker 46945 | -1/Command | Destroyed Executioner 46971 | -1/Command | Spotted Executioner 46978 | -1/Command | Destroyed Executioner 47026 | -1/Command | Destroyed 30 combat bots 47099 | -1/Command | Spotted Executioner 47103 | -1/Command | Reached level 40 47110 | -1/Command | Destroyed Executioner 47361 | -1/Command | Spotted Executioner 47361 | -1/Command | Spotted Executioner 47361 | -1/Command | Destroyed Executioner 47364 | -1/Command | Destroyed Executioner 47375 | -1/Command | Spotted Striker 47391 | -1/Command | Destroyed Striker 47393 | -1/Command | Spotted Executioner 47414 | -1/Command | Destroyed Executioner 47448 | -1/Command | Spotted Striker 47448 | -1/Command | Spotted Striker 47448 | -1/Command | Spotted Executioner 47455 | -1/Command | Destroyed Executioner 47458 | -1/Command | Destroyed Striker 47462 | -1/Command | Destroyed Striker 47504 | -1/Command | Destroyed 37 combat bots 47604 | -1/Command | System corruption reached 30% 47859 | -1/Command | Phase Generator disabled 47883 | -1/Command | Destroyed Striker 47885 | -1/Command | Spotted Alpha 7 47887 | -1/Command | Destroyed Alpha 7 47894 | -1/Command | Destroyed Executioner 47904 | -1/Command | Spotted Striker 47906 | -1/Command | Spotted Alpha 7 47908 | -1/Command | Spotted Executioner 47919 | -1/Command | Destroyed Striker 47927 | -1/Command | Spotted Executioner 47930 | -1/Command | Destroyed Executioner 47934 | -1/Command | Destroyed Executioner 47937 | -1/Command | Destroyed Alpha 7 49483 | -1/Command | Destroyed 59 combat bots 49569 | -1/Command | Destroyed 72 combat bots 49913 | -1/Command | Destroyed 59 combat bots 50113 | -1/Command | Destroyed 60 combat bots 50340 | -1/Command | Destroyed 25 combat bots 50391 | -1/Command | Destroyed 13 combat bots 50516 | -1/Command | Crushed by falling debris 50521 | -1/Command | Crushed by falling debris 50544 | -1/Command | Crushed by falling debris 50583 | -1/Command | Destroyed 24 combat bots 50660 | -1/Command | Destroyed 18 combat bots 51394 | -1/Command | Spotted Executioner 51399 | -1/Command | Destroyed Executioner 51425 | -1/Command | Spotted B-99 Colossus 51450 | -1/Command | Destroyed B-99 Colossus 51474 | -1/Command | Destroyed B-99 Colossus 51526 | -1/Command | Discovered new exit (range 7) 51764 | -1/Command | Found Prototype Device 51764 | -1/Command | Identified AEGIS Remote Shield 51771 | -1/Command | Found Prototype Reactor 51772 | -1/Command | Identified Zero-point Reactor 52748 | -1/Command | 0b10 Conduit disabled 52921 | -1/Command | Crushed by falling debris 53024 | -1/Command | Crushed by falling debris 53042 | -1/Command | Build established: Generator-Gunner 53043 | -1/Command | Crushed by falling debris 53058 | -1/Command | Crushed by falling debris 53221 | -1/Command | Destroyed MAIN.C Shell 53224 | -1/Command | MAIN.C activated Command garrisons 53273 | -1/Command | Destroyed MAIN.C 55015 | -1/Command | Found Adv. Kinecellerator 55666 | -1/Command | Build established: Generator-Skirmisher 56477 | -1/Command | Build established: Generator-Gunner 57474 | -1/Command | Identified exit to Surface 57475 | *** | Establishing 0b11! Last Messages --------------- 57245_ Warlord MG-163 cannot be rewired. 57253_ Dropped Exp. VSS Leg. 57254_ Acquired Prototype Treads. 57254_ Identified Exp. Biometal Heavy Treads. 57259_ Acquired 3 matter. 57264_ Acquired 5 matter. 57279_ Dropped Exp. Biometal Heavy Treads. 57279_ Acquired Exp. VSS Leg. 57288_ Acquired 5 matter. 57324_ Acquired 17 matter. 57373_ Dropped Enh. Nova Cannon. 57385_ Acquired 20 matter. 57462_ Triggered Stasis Trap. 57462_ A bubble of rippling energy engulfs the area. 57462_ Field strength at 47. 57463_ Stasis field depleted. 57474_ EXIT=IDENTIFIED: SURFACE [Achievement: Unfinished Business] [Achievement: Travel Light] Map ----- +----------------------------------------------------+ | ## # [ * [ " = # ############## | | "" * " "!! # # ## # | | # # "*!["R* # # ## #####+## | | !%!!""!"[ ""##""########+## """"""" #?# + | | # % [== " " ## """Y""" #?# # | | "%%! % ##" ## ### + | | #""""%=""%"#"#""# ## [ + # | | = %% ## ########+##### # | | * #" # " | | "" " + " | | *% % ## """" # % " | | *[ % ## """" + " | | [%%= = ## "" ###"""""###""""# " | | =*=!*% ## #?##% ##[ " | | !=*= ## #??## ## % | | ##""""######+#### #???## # " !! " | | !=%% #??##############???## # ! !% | | =%* ##### #?????????????????### #==!*" | | #= ##??# #?????#############;# # # =*] " | | ##%= "##?# #?????# ;##########[! ! " | | ##=%%[ # #?# #?????# ;#";;;##"## !!! " | | #%%==%="# ## #?????# ^ # ; ; # #;" " " | | %%== # # # #?????# ^ ^^^^ ^^^"#" " | | [= "+##"#"+##????# ^ ^ ^^^^ ^ ; " | | / " #????# "" ^ ^ ^ ^ ; " | | *" ##???# @" ^ ^ ^ ^ ^; " | | "##??# ^ ^ ^ %%^!^^; % " | | # #??# ^^ ^^^ ^^;""% % " | | # = "# #?# ^ ; ;=; # ###!" % " | | # # ## #;;;####"## " " | | " ## ### ;####???### " " | | "% "" #?# #;###########;;#???????# # | | =*!*#" #??###??????????####???????## " | | *=%=#"""+"#####???????????????????????????##" | | **%[# " "##???????????????????????????????## | | =!%[# #" " #???????????????????????????????## | | =[![# #" # ##??????????????????????????????# | | !!!=# " " #?????????????????????????######+###"" | | !%=!## " "# #?????????????????????????# | | !!!!##"#""#"#?????????????????????????# ! | | %! |## #?????????????????????????# | | %=! ## ] #?????????????????????????# | | #!!|##! #?????????????????????????# | | #"* ## #?????????????????????????############ | | " =## =#????????????????????????????????# | | *[=[[# / #????????????????????????????????# | | #![*"#"######????????????????????????????????# | | "! #???????????????????????????????????# | | !"^^= #???????????????????????????????????# | | #[^^%* ##########??????????????????????????# | +----------------------------------------------------+ Best States ------------- Heat Dissipation 183 Energy Generation 261 Energy Capacity 2050 Matter Stores 300 Matter Capacity 300 Sight Range 18 Robot Scan Range 24 Terrain Scan Range 20 Terrain Scan Density 610 Jamming Range 16 Power Amplification 40 Additional Mass Support 12 Corruption Containment 8 Armor Coverage 600 Resistance: KI 40 Resistance: TH 70 Resistance: P 40 Weapon Shielding 100 Phase Shifting 20 Evasion (%) 105 Targeting Accuracy 12 Core Analysis 15 Recoil Reduction 2 Particle Charging 35 Kinecelleration 50 Offensive Hacking 27 Defensive Hacking 35 Authchip Count 2 Item Schematics ----------------- Titanium Leg | -9/Recycling | Hacked Mak. Leg | -9/Recycling | Extrapolated Deep Structural Scanner | -9/Recycling | Extrapolated Mak. Light Armor Plating | -9/Recycling | Extrapolated Mak. Coolant Network | -9/Scraptown | Extrapolated Spk. Treads | -9/Scraptown | Extrapolated Mak. Medium Armor Plating | -9/Scraptown | Extrapolated Mak. Trap Scanner | -9/Scraptown | Extrapolated Mak. Ablative Armor | -9/Scraptown | Extrapolated Machine Rigger | -9/Scraptown | Extrapolated Mak. Power Shielding | -9/Scraptown | Extrapolated 0b10 Decoder Chip [Scout] | -9/Scraptown | Extrapolated Mak. Terrain Scanner | -9/Scraptown | Extrapolated Tactical Coordination Suite | -9/Scraptown | Extrapolated Mak. Spear | -9/Scraptown | Extrapolated Mak. Salvage Targeting Computer | -9/Scraptown | Extrapolated 0b10 Decoder Chip [Generic] | -9/Scraptown | Extrapolated 0b10 Decoder Chip [Skirmisher] | -9/Scraptown | Extrapolated Hvy. Beamcaster | -6/Factory | Extrapolated Spk. Medium Treads | -6/Factory | Extrapolated Beamcaster | -6/Factory | Extrapolated CPS Tube | -6/Factory | Scanalyzed Mak. Hacking Suite | -6/Factory | Extrapolated Mak. Terrain Scan Processor | -6/Factory | Extrapolated Mak. Hover Unit | -6/Factory | Extrapolated Mak. Power Source | -6/Factory | Extrapolated Multitool | -6/Factory | Extrapolated Mak. Thermal Plating | -6/Lower Caves | Extrapolated Mak. Heavy Armor Plating | -6/Zion | Extrapolated Active Sensor Spoofer | -6/Zion | Extrapolated Mak. Shrapnel Gun | -6/Zion | Extrapolated Thermic Laser | -6/Zion | Archive Imp. Dynamic Insulation System | -6/Zion | Archive Lgt. Angular Momentum Engine | -6/Zion | Archive Adv. Signal Interpreter | -6/Zion | Archive Adv. Cooling System | -6/Zion | Archive Adv. Recoil Stabilizer | -6/Zion | Archive Adv. Thermal Generator | -6/Zion | Archive Imp. Arc Projector | -6/Zion | Archive Focal Shield | -6/Zion | Archive Proton Cannon | -6/Zion | Archive Imp. Kinecellerator | -6/Zion | Archive Hvy. Plasma Cannon | -6/Zion | Archive Adv. Reaction Control System | -6/Zion | Archive Imp. KE Penetrator | -6/Zion | Archive Bore Cannon | -6/Zion | Extrapolated Arc Thrower | -6/Zion | Extrapolated Plasma Flamer | -6/Zion | Extrapolated Hvy. Battle Rifle | -6/Deep Caves | Extrapolated Hyp. Gauss Cannon | -5/Factory | Hacked Mak. Transmission Jammer | -5/Factory | Extrapolated Hyp. Alpha Cannon | -5/Factory | Extrapolated Mak. System Restoration Module | -5/Factory | Extrapolated Ripper | -5/Factory | Extrapolated Mak. Core Shielding | -5/Factory | Extrapolated Spk. Heavy Treads | -5/Waste | Extrapolated Mak. Propulsion Shielding | -5/Waste | Extrapolated Mak. Flight Unit | -5/Waste | Extrapolated Mak. Laser | -5/Waste | Extrapolated 0b10 Decoder Chip [Looter] | -5/Upper Caves | Extrapolated Heat Bomb Trap | -5/Upper Caves | Extrapolated Imp. Arc Thrower | -5/Upper Caves | Extrapolated Assault Drone Bay | -5/Zhirov | Free Exp. Heat Sink | -5/Zhirov | Free Exp. Optical Array | -5/Zhirov | Free Mak. Targeting Computer | -5/Zhirov | Extrapolated Mak. System Shield | -5/Zhirov | Extrapolated Enh. Flamer | -5/Zhirov | Extrapolated Energy Deflector | -4/Proximity Caves | Extrapolated Mak. Kinetic Plating | -4/Factory | Extrapolated Hvy. Reactive Plating | -4/Factory | Hacked Wartreads | -4/Upper Caves | Extrapolated Mak. Weapon Shielding | -4/Warlord | Extrapolated Mak. Hammer | -4/Warlord | Extrapolated Mak. ECM Suite | -3/Research | Extrapolated Mapping Drone Bay | -3/Research | Extrapolated Adv. Remote Shield | -3/Quarantine | Archive Cld. Phase Gun | -3/Quarantine | Archive Telecube | -3/Quarantine | Extrapolated Exp. Myomer Leg | -3/Quarantine | Hacked Tiamat Missile Launcher | -3/Quarantine | Archive Thermal Defense Suite | -3/Quarantine | Archive Exp. Terrain Scan Processor | -3/Quarantine | Archive Exp. Signal Interpreter | -3/Quarantine | Archive Exp. Coolant Injector | -3/Quarantine | Archive Com. Particle Reactor | -3/Quarantine | Archive Hvy. Wave Gun | -3/Quarantine | Archive Adv. Energy Well | -3/Quarantine | Archive Gravity Neutralizer | -3/Quarantine | Archive Exp. Shield Generator | -2/Testing | Archive Adv. EM Disruption Field | -2/Testing | Archive Imp. Q-thruster | -2/Testing | Archive Hds. Centrium Wheel | -2/Testing | Archive Cld. Field Propulsion Drive | -2/Testing | Archive Cld. Linear Gravjet | -2/Testing | Archive Enh. Multireflex Exoskeleton | -2/Protoforge | Extrapolated Multireflex Exoskeleton | -2/Protoforge | Extrapolated Adv. Quantum Shading Machine | -2/Protoforge | Archive Exp. Transmission Jammer | -2/Protoforge | Archive Centrium Heavy Treads | -2/Protoforge | Archive Vibroblade | -2/Protoforge | Archive Cld. Plasma Rifle | -2/Protoforge | Archive Hvy. Hardcell Cannon | -2/Protoforge | Archive Cld. Impulse Thruster | -2/Protoforge | Archive Exp. Hacking Suite | -2/Protoforge | Archive Hvy. Tesla Rifle | -2/Protoforge | Archive Imp. Diametric Drive | -2/Protoforge | Archive Mak. Cloaking Device | -2/Protoforge | Extrapolated Cld. Proton Cannon | -2/Protoforge | Archive Mni. Smartbomb Launcher | -2/Protoforge | Archive Robot Schematics ------------------ A-15 Conveyor | -6/Zion | Archive A-02 Transporter | -6/Zion | Archive G-50 Soldier | -6/Zion | Archive R-10 Processor | -3/Quarantine | Archive O-32 Director | -3/Quarantine | Archive A-27 Freighter | -3/Quarantine | Archive H-77 Assassin | -3/Quarantine | Archive B-60 Warrior | -3/Quarantine | Archive B-74 Champion | -3/Quarantine | Archive G-73 Enforcer | -2/Testing | Archive P-80 Master | -2/Testing | Archive Y-72 Warden | -2/Testing | Archive E-15 Imp | -2/Protoforge | Archive K-01 Serf | -2/Protoforge | Archive S-43 Plague | -2/Protoforge | Archive C-55 Analyst | -2/Protoforge | Archive T-07 Excavator | -2/Protoforge | Archive Fabricated ------------ Imp. Thunder Leg | x2 | -6/Factory | Preloaded Hvy. Beamcaster | x1 | -6/Factory Hyp. Gauss Cannon | x2 | -5/Factory Hyp. Alpha Cannon | x1 | -5/Factory Hyp. Alpha Cannon | x1 | -5/Factory Hyp. Alpha Cannon | x1 | -5/Factory Hyp. Alpha Cannon | x1 | -5/Factory | Authchip Hvy. Reactive Plating | x1 | -4/Factory Mak. System Restoration Module | x2 | -2/Testing Repaired ---------- CPS Tube | 99% | -6/Factory | Broken Studied --------- Deuterium Engine | -6/Factory | Hacked Plasma Rifle | -6/Factory | Hacked Lgt. Nuclear Core | -6/Factory | Hacked Rnf. Fission Core | -5/Factory | Hacked Imp. Thunder Leg | -3/Research | Hacked Alien Tech Used ----------------- Core Expander Integrated Reactor Dimensional Node Initializer Transdimensional Reconstructor High-powered Transdimensional Reconstructor Subatomic Replicator Terrabomb Concept Nanofilaments [Endoweave] Achievements -------------- Art Critic Protector Scorched Earth Travel Light Unfinished Business Worth The Wait Challenges ------------ None RPGLIKE | -11 -10 -10 -10 -9 -9 -6 -6 -6 -6 -6 -5 -5 -5 -5 -5 -5 -5 -4 -4 -4 -4 -4 -3 -3 -3 -2 -2 -2 -1 -1 --------- Run | Yrd Mat Min Sub Rec Scr Fac Low Low Zio Dee Pro Fac Was Fac Upp Upp Zhi Pro Fac Upp Upp War Pro Res Qua Res Tes Frg Acc Com Levels Raised 39 | . . 1 1 4 . 7 1 1 1 . 2 4 . 2 1 . . . 2 . . 2 1 1 1 2 1 1 2 1 XP Earned 62609 | 3000 1450 850 1715 5314 900 10565 1200 1700 604 1048 1900 6360 52 3736 258 46 50 582 3068 287 79 2212 1216 2142 1083 2769 1439 2440 2636 1908 XP Spent 61305 | 2985 . 1500 1450 200 5850 10115 1300 1400 . 2100 1575 7200 . 3250 1530 . . . 1100 . . 4700 1700 . 1700 2845 1050 900 5355 1500 Upgrades 138 | 18 . 4 3 1 15 26 2 1 . 5 4 12 . 6 3 . . . 1 . . 4 1 . 1 9 1 4 14 3 Power Slot 5 | . . . . . 1 . . . . . . 2 . 1 . . . . . . . . 1 . . . . . . . Propulsion Slot 5 | 1 . . . . . 1 . . . . . . . . . . . . 1 . . 1 . . 1 . . . . . Utility Slot 7 | . . . . . 2 1 . 1 . . . 1 . . . . . . . . . 1 . . . . . . 1 . Weapon Slot 3 | 1 . . . . . 2 . . . . . . . . . . . . . . . . . . . . . . . . Core Integrity 28 | . . . . . . 8 . . . . . . . . . . . . . . . . . . . 7 . . 13 . Heat Dissipation 20 | 3 . . . . . 6 . . . 3 . 2 . 5 1 . . . . . . . . . . . . . . . Energy Generation 4 | . . 1 . . . . . . . . 1 1 . . . . . . . . . . . . . . 1 . . . Energy Storage 7 | . . . . . . . . . . . 2 5 . . . . . . . . . . . . . . . . . . Mass Support 2 | 1 . 1 . . . . . . . . . . . . . . . . . . . . . . . . . . . . Inventory Capacity 5 | 1 . . 2 . . 1 . . . 1 . . . . . . . . . . . . . . . . . . . . Sight Range 2 | . . . . . . . . . . 1 . . . . 1 . . . . . . . . . . . . . . . Sensor Range 12 | 3 . . . . 7 2 . . . . . . . . . . . . . . . . . . . . . . . . Terrain Scan Density 6 | 6 . . . . . . . . . . . . . . . . . . . . . . . . . . . . . . Ranged Accuracy 7 | . . 1 . . . 1 . . . . 1 1 . . 1 . . . . . . . . . . 2 . . . . Hack Attack % 3 | . . . . 1 2 . . . . . . . . . . . . . . . . . . . . . . . . . Hack Defense % 3 | . . . 1 . 2 . . . . . . . . . . . . . . . . . . . . . . . . . KI Resistance % 4 | 1 . . . . . 1 . . . . . . . . . . . . . . . 2 . . . . . . . . TH Resistance % 4 | 1 . . . . 1 . 2 . . . . . . . . . . . . . . . . . . . . . . . EX Resistance % 4 | . . . . . . . . . . . . . . . . . . . . . . . . . . . . 4 . . KI Damage % 3 | . . . . . . . . . . . . . . . . . . . . . . . . . . . . . . 3 TH Damage % 4 | . . 1 . . . 3 . . . . . . . . . . . . . . . . . . . . . . . . Protomatter Created 56179 | . 18 26 236 384 . 903 72 221 . 125 221 1303 344 1488 535 . . 14 2636 701 40 4852 1239 2974 2975 3721 3507 10500 6696 10448 Integrity Restored 35325 | . 54 78 752 441 43 2169 216 500 202 203 345 2490 160 639 81 . . . 688 322 . 890 226 1565 2282 1739 2181 6080 3727 7252 Core 27172 | . 54 78 668 325 . 2000 216 325 41 144 345 1907 . 496 67 . . . 456 256 . 487 173 1112 1777 1600 1821 4504 2872 5448 Parts 8153 | . . . 84 116 43 169 . 175 161 59 . 583 160 143 14 . . . 232 66 . 403 53 453 505 139 360 1576 855 1804 Protomatter Decayed 43105 | . . 41 170 416 21 233 . 53 61 115 97 305 151 1150 440 . 66 26 2121 541 . 2020 1293 1930 1413 2097 329 19985 3803 4228 Game ------ Seed DronePulseGuard Manual? 0 Play Time 08:35:53 Cumulative 145.9 hours Start 2026.09.02 @ 15:18:10 End 2026.09.03 @ 20:09:59 Sessions 21 Manual Loads 0 Difficulty Rogue Special Mode Winter2019/RPGLIKE Game No. 89 Rogue 88 Adventurer 1 Explorer 0 Win Type 1 Total 10 Types 4/2/1/1/0/0/0/1/0/1 Lore% 61 Gallery% 69 Achievement% 68 Wizard Run 0 Options --------- Layout 1 ASCII 0 Keyboard 0 Movement Numpad Keybinds 0 Fullscreen 1 Font 32/SmallcapsGlow Map View 50x35 Zoom Use 0% Tactical HUD 1 Map Filters NONE Filters NONE Steam 1 RUN: a085ea77-6928-4e6f-9e72-3ad0b7f1c979